Workbook

Sheet GraficarPuntos (hidden)
A1: Grafica de Comportamiento de Ambas Leyes:
A4: Veces de SMG | B4: Ley Actual | C4: Reforma
A5: =+#REF! ->  | B5: =+#REF! ->  | C5: =+#REF! -> 
A6: =+#REF! ->  | B6: =+#REF! ->  | C6: =+#REF! -> 
A7: =+#REF! ->  | B7: =+#REF! ->  | C7: =+#REF! -> 
A8: =+#REF! ->  | B8: =+#REF! ->  | C8: =+#REF! -> 
A9: =+#REF! ->  | B9: =+#REF! ->  | C9: =+#REF! -> 
A10: =+#REF! ->  | B10: =+#REF! ->  | C10: =+#REF! -> 
A11: =+#REF! ->  | B11: =+#REF! ->  | C11: =+#REF! -> 
A12: =+#REF! ->  | B12: =+#REF! ->  | C12: =+#REF! -> 
A13: =+#REF! ->  | B13: =+#REF! ->  | C13: =+#REF! -> 
A14: =+#REF! ->  | B14: =+#REF! ->  | C14: =+#REF! -> 
A15: =+#REF! ->  | B15: =+#REF! ->  | C15: =+#REF! -> 
A16: =+#REF! ->  | B16: =+#REF! ->  | C16: =+#REF! -> 
A17: =+#REF! ->  | B17: =+#REF! ->  | C17: =+#REF! -> 
A18: =+#REF! ->  | B18: =+#REF! ->  | C18: =+#REF! -> 
A19: =+#REF! ->  | B19: =+#REF! ->  | C19: =+#REF! -> 
A20: =+#REF! ->  | B20: =+#REF! ->  | C20: =+#REF! -> 
A21: =+#REF! ->  | B21: =+#REF! ->  | C21: =+#REF! -> 
A22: =+#REF! ->  | B22: =+#REF! ->  | C22: =+#REF! -> 
A23: =+#REF! ->  | B23: =+#REF! ->  | C23: =+#REF! -> 
A24: =+#REF! ->  | B24: =+#REF! ->  | C24: =+#REF! -> 
A25: =+#REF! ->  | B25: =+#REF! ->  | C25: =+#REF! -> 
A26: =+#REF! ->  | B26: =+#REF! ->  | C26: =+#REF! -> 
A27: =+#REF! ->  | B27: =+#REF! ->  | C27: =+#REF! -> 
A28: =+#REF! ->  | B28: =+#REF! ->  | C28: =+#REF! -> 
A29: =+#REF! ->  | B29: =+#REF! ->  | C29: =+#REF! -> 
A30: =+#REF! ->  | B30: =+#REF! ->  | C30: =+#REF! -> 
A31: =+#REF! ->  | B31: =+#REF! ->  | C31: =+#REF! -> 
A32: =+#REF! ->  | B32: =+#REF! ->  | C32: =+#REF! -> 
A33: =+#REF! ->  | B33: =+#REF! ->  | C33: =+#REF! -> 
A34: =+#REF! ->  | B34: =+#REF! ->  | C34: =+#REF! -> 
A35: =+#REF! ->  | B35: =+#REF! ->  | C35: =+#REF! -> 
A36: =+#REF! ->  | B36: =+#REF! ->  | C36: =+#REF! -> 
A37: =+#REF! ->  | B37: =+#REF! ->  | C37: =+#REF! -> 
A38: =+#REF! ->  | B38: =+#REF! ->  | C38: =+#REF! -> 

Sheet Opciones Nomina (hidden)
A1: Opciones del sistema | K1: Nombre en la cedula
A3: 1 | K3: Monto de Subisdio a pagar Maximo (475 o por Dias del Periodo)
A5: 2 | K5: No aplica
A7: 3 | K7: Activar "001 Otros Pagos, Reintegro de ISR Retenido en Exceso"
A9: 4 | K9: Retener ISR de menos en el ajuste mensual (periodos de 5 semanas)
A11: 5 | K11: No aplica
A13: 6 | K13: Retener ISR aunque el trabajador gané el minimo

Sheet Hoja2 (hidden)

Sheet Instrucciones
A2: Instrucciones:
A4: Para hacer simulación de sueldos y el cálculo anual, recomeindo que solo modifiques las celdas en amarillo.
A6: Existen 4 banderas, están seleccionadas de la forma mas conservadora posible, es decir, menos riesgos en el cálculo anual
A7: Tú puedes modificar estas banderas para ver el posible impacto que pudieras tener.
A9: La hoja Anual y Resumen están protegidas.
F14: Opcion | G14: Auxilar Opción
A15: Activar "001 Otros Pagos, Reintegro de ISR Retenido en Exceso" | F15: No | G15: 0
A16: Retener ISR aunque el trabajador gane el mínimo | F16: No | G16: 0
A17: Monto de Subisdio a pagar Máximo (475 o por Días del Periodo) | F17: 475 | G17: 475
A18: Retener ISR de menos en el ajuste mensual (periodos de 5 semanas) | F18: Si | G18: 1
A20: En periodos de mas de 4 semanas, topar a (475 o 35 días de Subsidio) | F20: 475 | G20: 475
A25: Autores
A26: Benito Brragán Rangel
A27: María Susana Hernández Valenzuela
A28: Edwin Alejandro Frias Berumen
A29: José Luis Aldana Díaz

Sheet Anual25
A1: Calculo Anual 2025
A3: Tipo concepto | B3: Clave SAT | C3: Conceptos | D3: Importes
A4: Percepción | B4: Varias | C4: Ingreso gravado acumulable | D4: =+Resumen!C18 -> 101483.2
C5: Calculo según Tarifa Anual | D5: =(D4-VLOOKUP(D4,Anual,1))*VLOOKUP(D4,Anual,3)+VLOOKUP(D4,Anual,2) -> 7236.192032
B6: Nodo | C6: Subsidio Causado Correspondiente | D6: =+Resumen!G18 -> 5700
A7: Deducción | B7: 107 | C7: Ajuste Subs Causado (Resta) | D7: =+Resumen!H18 -> 0
C8: Total Subsidio Causado | D8: =+D6-D7 -> 5700
C9: Calculo Anual ISR Menos Subsidio | D9: =+D5-D8 -> 1536.192032
A10: Deducción | B10: 002 | C10: ISR Retenido del Mes | D10: =+Resumen!D18 -> 0
A11: Deducción | B11: 002 | C11: ISR Retenido de Menos | D11: =+Resumen!E18 -> 0
A12: Deducción | B12: 002 | C12: ISR Por Ajuste Mensual | D12: =+Resumen!F18 -> 0
C13: Total de ISR Retenido | D13: =SUM(D10:D12) -> 0
A14: Otro Pago | B14: 001 | C14: Reintegro de ISR retenido de mas | D14: =+Resumen!I18 -> 0
C15: Total ISR retenido | D15: =+D13-D14 -> 0
C16: Saldo en Contra | D16: =MAX(0,+D9-D15) -> 1536.192032
C17: Saldo a Favor | D17: =MAX(0,+D15-D9) -> 0

Sheet Resumen
A1: Resumen Meses Para Calculo Anual
A3: =+'M-01'!M2 -> 0 | B3: =+'M-01'!N2 -> Dias | C3: =+'M-01'!O2 -> Varios | D3: =+'M-01'!P2 -> Deduccion 002 | E3: =+'M-01'!R2 -> Deduccion 002 | F3: Deducción 002 | G3: Nodo | H3: =+'M-01'!T2 -> Deducción 107 | I3: =+'M-01'!U2 -> Otro Pagos 001
A4: =+'M-01'!M3 -> Mes | B4: =+'M-01'!N3 -> Acumulado Dias | C4: =+'M-01'!O3 -> Ingreso Acumulable del Mes | D4: =+'M-01'!P3 -> ISR Retenido del Mes | E4: ISR Retenido de Menos | F4: ISR Por Ajuste Mensual | G4: =+'M-01'!S3 -> Subsidio Correspondiente | H4: =+'M-01'!T3 -> Ajuste al Subsidio Causado | I4: =+'M-01'!U3 -> Reintegro de ISR Retenido en Exceso | J4: =+'M-01'!V3 -> ISR Neto | K4: =+'M-01'!W3 -> Subsidio Correspondiente Neto
A5: =_xlfn.VSTACK('M-01:M-12'!M4:U4) -> 1 | B5: 35 | C5: 9758 | D5: 0 | E5: 0 | F5: 0 | G5: 475 | H5: 0 | I5: 0 | J5: =+D5+E5+F5 -> 0 | K5: =+G5-H5 -> 475
A6: 2 | B6: 28 | C6: 7806.4 | D6: 0 | E6: 0 | F6: 0 | G6: 475 | H6: 0 | I6: 0 | J6: =+D6+E6+F6 -> 0 | K6: =+G6-H6 -> 475
A7: 3 | B7: 28 | C7: 7806.4 | D7: 0 | E7: 0 | F7: 0 | G7: 475 | H7: 0 | I7: 0 | J7: 0 | K7: 475
A8: 4 | B8: 28 | C8: 7806.4 | D8: 0 | E8: 0 | F8: 0 | G8: 475 | H8: 0 | I8: 0 | J8: 0 | K8: 475
A9: 5 | B9: 35 | C9: 9758 | D9: 0 | E9: 0 | F9: 0 | G9: 475 | H9: 0 | I9: 0 | J9: 0 | K9: 475
A10: 6 | B10: 28 | C10: 7806.4 | D10: 0 | E10: 0 | F10: 0 | G10: 475 | H10: 0 | I10: 0 | J10: 0 | K10: 475
A11: 7 | B11: 35 | C11: 9758 | D11: 0 | E11: 0 | F11: 0 | G11: 475 | H11: 0 | I11: 0 | J11: 0 | K11: 475
A12: 8 | B12: 28 | C12: 7806.4 | D12: 0 | E12: 0 | F12: 0 | G12: 475 | H12: 0 | I12: 0 | J12: 0 | K12: 475
A13: 9 | B13: 28 | C13: 7806.4 | D13: 0 | E13: 0 | F13: 0 | G13: 475 | H13: 0 | I13: 0 | J13: 0 | K13: 475
A14: 10 | B14: 35 | C14: 9758 | D14: 0 | E14: 0 | F14: 0 | G14: 475 | H14: 0 | I14: 0 | J14: 0 | K14: 475
A15: 11 | B15: 28 | C15: 7806.4 | D15: 0 | E15: 0 | F15: 0 | G15: 475 | H15: 0 | I15: 0 | J15: 0 | K15: 475
A16: 12 | B16: 28 | C16: 7806.4 | D16: 0 | E16: 0 | F16: 0 | G16: 475 | H16: 0 | I16: 0 | J16: 0 | K16: 475
A18: Total | B18: =SUM(B5:B16) -> 364 | C18: =SUM(C5:C16) -> 101483.2 | D18: =SUM(D5:D16) -> 0 | E18: 0 | F18: =SUM(F5:F16) -> 0 | G18: 5700 | H18: 0 | I18: 0 | J18: 0 | K18: 5700

Sheet M-01
A1: Número de periodos en el mes | B1: 5 | C1: Nota: Si vas a realizar el cálculo con 4 semanas, asegúrate de poner en cero los días pagados del periodo 5!!!!
D2: P E R I O D O S | N2: Dias | O2: Varios | P2: Deduccion 002 | Q2: Deduccion 002 | R2: Deduccion 002 | S2: Sin Concepto | T2: Deducción 107 | U2: Otro Pagos 001
A3: Cve SAT | B3: Tipo Concepto | C3: Concepto | D3: 1 | E3: 2 | F3: 3 | G3: 4 | H3: 5 | I3: Acumulados Periodo | J3: Recalculo | K3: Diferencia | M3: Mes | N3: Acumulado Dias | O3: Ingreso Acumulable del Mes | P3: ISR Retenido del Mes | Q3: ISR Retenido de Menos | R3: ISR Por Ajuste Mensual | S3: Subsidio Correspondiente | T3: Ajuste al Subsidio Causado | U3: Reintegro de ISR Retenido en Exceso | V3: ISR Neto | W3: Subsidio Correspondiente Neto
C4: Dias Periodo/Calendario | D4: 7 | E4: 7 | F4: =+E4 -> 7 | G4: 7 | H4: 7 | I4: =SUM(D4:H4) -> 35 | M4: 1 | N4: =+I4 -> 35 | O4: =+I9 -> 9758 | P4: =SUM(D21:H21) -> 0 | Q4: =+H22 -> 0 | R4: =+J24 -> 0 | S4: =+I18 -> 475 | T4: =+J25 -> 0 | U4: =+J26 -> 0 | V4: =+P4+Q4+R4 -> 0 | W4: =+S4-T4 -> 475
C5: Dias Pagados | D5: 7 | E5: 7 | F5: 7 | G5: 7 | H5: 7
C6: Salario Diario | D6: 278.8 | E6: =+D6 -> 278.8 | F6: =+E6 -> 278.8 | G6: 278.8 | H6: =G6 -> 278.8
C7: Ingreso Ordinario | D7: =D5*D6 -> 1951.6 | E7: =E5*E6 -> 1951.6 | F7: =F5*F6 -> 1951.6 | G7: =G5*G6 -> 1951.6 | H7: =H5*H6 -> 1951.6 | I7: =SUM(D7:H7) -> 9758
A8: Varias | B8: Percepción | C8: Ingreso ExtraOrdinario
A9: Varias | B9: Percepción | C9: Ingreso Gravado Acumulable | D9: =+D8+D7 -> 1951.6 | E9: =+E8+E7 -> 1951.6 | F9: =+F8+F7 -> 1951.6 | G9: =+G8+G7 -> 1951.6 | H9: =+H8+H7 -> 1951.6 | I9: =SUM(D9:H9) -> 9758 | J9: =I9 -> 9758 | K9: =+I9 -> 9758
B10: Ocultos | C10: Oculto Acumulado para 8,091 | D10: =+D9 -> 1951.6 | E10: =+D10+E9 -> 3903.2 | F10: =+E10+F9 -> 5854.8 | G10: =+F10+G9 -> 7806.4 | H10: =+G10+H9 -> 9758
B11: Ocultos | C11: Dias a Tomar Para Elevar/DesElevar | D11: =+D4 -> 7 | E11: =+E4 -> 7 | F11: =+F4 -> 7 | G11: =+G4 -> 7 | H11: =+H4 -> 7
B12: Ocultos | C12: Base gravada elevada al mes | D12: =IF(D9=0,0,D9/D11*30.4) -> 8475.52 | E12: =IF(E9=0,0,E9/E11*30.4) -> 8475.52 | F12: =IF(F9=0,0,F9/F11*30.4) -> 8475.52 | G12: =IF(G9=0,0,G9/G11*30.4) -> 8475.52 | H12: =IF(H4=0,0,IF(H9=0,0,H9/H11*30.4)) -> 8475.52
B13: Ocultos | C13: ISR directo elevado al mes | D13: =((D12-VLOOKUP(D12,TablaMes,1))*VLOOKUP(D12,TablaMes,3))+VLOOKUP(D12,TablaMes,2) -> 605.038448 | E13: =((E12-VLOOKUP(E12,TablaMes,1))*VLOOKUP(E12,TablaMes,3))+VLOOKUP(E12,TablaMes,2) -> 605.038448 | F13: =((F12-VLOOKUP(F12,TablaMes,1))*VLOOKUP(F12,TablaMes,3))+VLOOKUP(F12,TablaMes,2) -> 605.038448 | G13: =((G12-VLOOKUP(G12,TablaMes,1))*VLOOKUP(G12,TablaMes,3))+VLOOKUP(G12,TablaMes,2) -> 605.038448 | H13: =((H12-VLOOKUP(H12,TablaMes,1))*VLOOKUP(H12,TablaMes,3))+VLOOKUP(H12,TablaMes,2) -> 605.038448
B14: Ocultos | C14: Subsidio semanal dato oculto relacionado | D14: =IF(D4=0,0,SubSem) -> 109.38 | E14: =IF(E4=0,0,SubSem) -> 109.38 | F14: =IF(F4=0,0,SubSem) -> 109.38 | G14: =IF(G4=0,0,SubSem) -> 109.38 | H14: =IF(H4=0,0,SubSem) -> 109.38
B15: Ocultos | C15: Oculto Para llegar a los 390 | D15: =+D14 -> 109.38 | E15: =IF(E4=0,0,MIN(+D15+E14,$H$36)) -> 218.76 | F15: =IF(F4=0,0,MIN(+E15+F14,$H$36)) -> 328.14 | G15: =IF(G3=B1, MAX(H36,IF(G4=0,0,MIN(F15+G14,$H$36))), IF(G4=0,0,MIN(+F15+G14,$H$36))) -> 437.52 | H15: =IF(H3=B1, MAX(H36,IF(H4=0,0,MIN(F15+H14,$H$36))), IF(H4=0,0,MIN(+F15+G14,$H$36))) -> 475
B16: Ocultos | C16: Limite para Subsidio Semanal | D16: =LimiteSemSub -> 2342.006579 | E16: =LimiteSemSub -> 2342.006579 | F16: =LimiteSemSub -> 2342.006579 | G16: =LimiteSemSub -> 2342.006579 | H16: =LimiteSemSub -> 2342.006579
C17: ISR de Tarifa | D17: =D13/30.4*D11 -> 139.3180637 | E17: =E13/30.4*E11 -> 139.3180637 | F17: =F13/30.4*F11 -> 139.3180637 | G17: =G13/30.4*G11 -> 139.3180637 | H17: =H13/30.4*H11 -> 139.3180637 | J17: =((J9-VLOOKUP(J9,TablaMes,1))*VLOOKUP(J9,TablaMes,3))+VLOOKUP(J9,TablaMes,2) -> 744.572272 | K17: Informativo
C18: Subsidio Correspondiente del Periodo | D18: =IF(OR(D10>LimiteMensSub,D9>D16),0,MAX(+D15,0)) -> 109.38 | E18: =IF(OR(E10>LimiteMensSub,E9>E16),0,MAX(+E15-D15,0)) -> 109.38 | F18: =IF(OR(F10>LimiteMensSub,F9>F16),0,MAX(+F15-E15,0)) -> 109.38 | G18: =IF(OR(G10>LimiteMensSub,G9>G16),0,MAX(+G15-F15,0)) -> 109.38 | H18: =IF(OR(H10>LimiteMensSub,H9>H16),0,MAX(+H15-G15,0)) -> 37.48 | I18: =SUM(D18:H18) -> 475 | J18: =IF(OR(I9>10171,I18>H39),0,I18) -> 475
C19: Subsidio definitivo | D19: =MIN(D18,D17) -> 109.38 | E19: =MIN(E18,E17) -> 109.38 | F19: =MIN(F18,F17) -> 109.38 | G19: =IF(G3=B1,IF(OR(G10>LimiteMensSub,G9>G16),0,MIN(MAX(G15-F20,0),G17)),MIN(G18,G17)) -> 109.38 | H19: =IF(OR(H10>LimiteMensSub,H9>H16),0,MIN(MAX(H15-G20,0),H17)) -> 37.48 | I19: =SUM(D19:H19) -> 475 | J19: =IF(OR(I9>10171,I19>H39),0,I19) -> 475
C20: Subsidio acumulado | D20: =D19 -> 109.38 | E20: =E19+D20 -> 218.76 | F20: =F19+E20 -> 328.14 | G20: =G19+F20 -> 437.52 | H20: =H19+G20 -> 475
A21: 002 | B21: Deducción | C21: ISR Retención Semanal | D21: =IF(SMGC*7>=D9,(MAX(D17-D18,0)*$H$35),MAX(D17-D18,0)) -> 0 | E21: =IF(SMGC*7>=E9,(MAX(E17-E18,0)*$H$35),MAX(E17-E18,0)) -> 0 | F21: =IF(SMGC*7>=F9,(MAX(F17-F18,0)*$H$35),MAX(F17-F18,0)) -> 0 | G21: =IF(SMGC*7>=G9,(MAX(G17-G18,0)*$H$35),MAX(G17-G18,0)) -> 0 | H21: =IF(SMGC*7>=H9,(MAX(H17-H18,0)*$H$35),MAX(H17-H18,0)) -> 0 | I21: =SUM(D21:H21)+H24 -> 0 | J21: =MAX(0,J17-J19) -> 269.572272 | K21: =J21-I21 -> 269.572272
A22: 002 | B22: Deducción | C22: ISR Retenido de Menos | H22: =IF(H9=0,0,IF(I9>SMGC*I4,MAX(K21,0)*H37,(MAX(K21,0)*H37)*H35)) -> 0
A23: 107 | B23: Deducción | C23: Ajuste al Subsidio Causado | G23: =IF($H$9=0,J23,0) -> 0 | H23: =IF($H$9<>0,J23,0) -> 0 | I23: Resta | J23: =IF(I19>J19,I19,0) -> 0
A24: 002 | B24: Deducción | C24: ISR por ajuste mensual | G24: =IF($H$9=0,J24,0) -> 0 | H24: =IF($H$9<>0,J24,0) -> 0 | I24: Resta | J24: =+J23 -> 0
A25: 007 | B25: Otros Pagos | C25: ISR ajustado por subsidio | G25: =IF($H$9=0,J25,0) -> 0 | H25: =IF($H$9<>0,J25,0) -> 0 | I25: Suma | J25: =+J24 -> 0
A26: 001 | B26: Otros Pagos | C26: Reintegro de ISR retenido en exceso | G26: =IF($H$9=0,J26,0) -> 0 | H26: =IF($H$9<>0,J26,0) -> 0 | I26: Suma | J26: =MAX(0,K21*-1)*H34 -> 0
C27: Neto | D27: =+D9-D21-D24 -> 1951.6 | E27: =+E9-E21-E24 -> 1951.6 | F27: =+F9-F21-F24 -> 1951.6 | G27: =+G9-G21-G24 -> 1951.6 | H27: =+H9-H21-H24-H22 -> 1951.6
H31: =IF(H9=0,0,IF(I9>SMGC*I4,MAX(K21,0)*H37,(MAX(K21,0)*H37)*H35)) -> 0
A33: Bandera | G33: Opcion | H33: Auxilar Opción
A34: 1) | B34: Activar "001 Otros Pagos, Reintegro de ISR Retenido en Exceso" | G34: =+Instrucciones!F15 -> No | H34: =IF(G34="Si",1,0) -> 0 | J34: =IF(G34="si",1,0) -> 0
A35: 2) | B35: Retener ISR aunque el trabajador gane el minimo | G35: No | H35: =IF(G35="Si",1,0) -> 0
A36: 3) | B36: Monto de Subisdio a pagar Máximo (475 o por Días del Periodo) | G36: =+Instrucciones!F17 -> 475 | H36: =IF(G36=475,475,MIN(SUM(D4:H4)*15.62,475)) -> 475
A37: 4) | B37: Retener ISR de menos en el ajuste mensual (periodos de 5 semanas) | G37: =+Instrucciones!F18 -> Si | H37: =IF(G37="Si",1,0) -> 1
A39: 5) | B39: En periodos de mas de 4 semanas, topar a (475 o 35 días de Subsidio) | G39: =+Instrucciones!F20 -> 475 | H39: =IF(G39=475,475,546.7) -> 475

Sheet M-02
A1: Número de periodos en el mes | B1: 4 | C1: Nota: Si vas a realizar el cálculo con 4 semanas, asegúrate de poner en cero los días pagados del periodo 5!!!!
D2: P E R I O D O S | N2: Dias | O2: Varios | P2: Deduccion 002 | Q2: Deduccion 002 | R2: Deduccion 002 | S2: Sin Concepto | T2: Deducción 107 | U2: Otro Pagos 001
A3: Cve SAT | B3: Tipo Concepto | C3: Concepto | D3: 1 | E3: 2 | F3: 3 | G3: 4 | H3: 5 | I3: Acumulados Periodo | J3: Recalculo | K3: Diferencia | M3: Mes | N3: Acumulado Dias | O3: Ingreso Acumulable del Mes | P3: ISR Retenido del Mes | Q3: ISR Retenido de Menos | R3: ISR Por Ajuste Mensual | S3: Subsidio Correspondiente | T3: Ajuste al Subsidio Causado | U3: Reintegro de ISR Retenido en Exceso | V3: ISR Neto | W3: Subsidio Correspondiente Neto
C4: Dias Periodo/Calendario | D4: 7 | E4: 7 | F4: =+E4 -> 7 | G4: 7 | I4: =SUM(D4:H4) -> 28 | M4: 2 | N4: =+I4 -> 28 | O4: =+I9 -> 7806.4 | P4: =SUM(D21:H21) -> 0 | Q4: =+H22 -> 0 | R4: =+J24 -> 0 | S4: =+I18 -> 475 | T4: =+J25 -> 0 | U4: =+J26 -> 0 | V4: =+P4+Q4+R4 -> 0 | W4: =+S4-T4 -> 475
C5: Dias Pagados | D5: 7 | E5: 7 | F5: 7 | G5: 7
C6: Salario Diario | D6: 278.8 | E6: =+D6 -> 278.8 | F6: =+E6 -> 278.8 | G6: 278.8 | H6: 278.8
C7: Ingreso Ordinario | D7: =D5*D6 -> 1951.6 | E7: =E5*E6 -> 1951.6 | F7: =F5*F6 -> 1951.6 | G7: =G5*G6 -> 1951.6 | H7: =H5*H6 -> 0 | I7: =SUM(D7:H7) -> 7806.4
A8: Varias | B8: Percepción | C8: Ingreso ExtraOrdinario
A9: Varias | B9: Percepción | C9: Ingreso Gravado Acumulable | D9: =+D8+D7 -> 1951.6 | E9: =+E8+E7 -> 1951.6 | F9: =+F8+F7 -> 1951.6 | G9: =+G8+G7 -> 1951.6 | H9: =+H8+H7 -> 0 | I9: =SUM(D9:H9) -> 7806.4 | J9: =I9 -> 7806.4 | K9: =+I9 -> 7806.4
B10: Ocultos | C10: Oculto Acumulado para 8,091 | D10: =+D9 -> 1951.6 | E10: =+D10+E9 -> 3903.2 | F10: =+E10+F9 -> 5854.8 | G10: =+F10+G9 -> 7806.4 | H10: =+G10+H9 -> 7806.4
B11: Ocultos | C11: Dias a Tomar Para Elevar/DesElevar | D11: =+D4 -> 7 | E11: =+E4 -> 7 | F11: =+F4 -> 7 | G11: =+G4 -> 7 | H11: =+H4 -> 0
B12: Ocultos | C12: Base gravada elevada al mes | D12: =IF(D9=0,0,D9/D11*30.4) -> 8475.52 | E12: =IF(E9=0,0,E9/E11*30.4) -> 8475.52 | F12: =IF(F9=0,0,F9/F11*30.4) -> 8475.52 | G12: =IF(G9=0,0,G9/G11*30.4) -> 8475.52 | H12: =IF(H4=0,0,IF(H9=0,0,H9/H11*30.4)) -> 0 | M12: 10171 | O12: 10171
B13: Ocultos | C13: ISR directo elevado al mes | D13: =((D12-VLOOKUP(D12,TablaMes,1))*VLOOKUP(D12,TablaMes,3))+VLOOKUP(D12,TablaMes,2) -> 605.038448 | E13: =((E12-VLOOKUP(E12,TablaMes,1))*VLOOKUP(E12,TablaMes,3))+VLOOKUP(E12,TablaMes,2) -> 605.038448 | F13: =((F12-VLOOKUP(F12,TablaMes,1))*VLOOKUP(F12,TablaMes,3))+VLOOKUP(F12,TablaMes,2) -> 605.038448 | G13: =((G12-VLOOKUP(G12,TablaMes,1))*VLOOKUP(G12,TablaMes,3))+VLOOKUP(G12,TablaMes,2) -> 605.038448 | H13: =((H12-VLOOKUP(H12,TablaMes,1))*VLOOKUP(H12,TablaMes,3))+VLOOKUP(H12,TablaMes,2) -> 0 | M13: =+M12/28 -> 363.25 | O13: =+O12/35 -> 290.6
B14: Ocultos | C14: Subsidio semanal dato oculto relacionado | D14: =IF(D4=0,0,SubSem) -> 109.38 | E14: =IF(E4=0,0,SubSem) -> 109.38 | F14: =IF(F4=0,0,SubSem) -> 109.38 | G14: =IF(G4=0,0,SubSem) -> 109.38 | H14: =IF(H4=0,0,SubSem) -> 0
B15: Ocultos | C15: Oculto Para llegar a los 390 | D15: =+D14 -> 109.38 | E15: =IF(E4=0,0,MIN(+D15+E14,$H$36)) -> 218.76 | F15: =IF(F4=0,0,MIN(+E15+F14,$H$36)) -> 328.14 | G15: =IF(G3=B1, MAX(H36,IF(G4=0,0,MIN(F15+G14,$H$36))), IF(G4=0,0,MIN(+F15+G14,$H$36))) -> 475 | H15: =IF(H3=B1, MAX(H36,IF(H4=0,0,MIN(F15+H14,$H$36))), IF(H4=0,0,MIN(+F15+G14,$H$36))) -> 0
B16: Ocultos | C16: Limite para Subsidio Semanal | D16: =LimiteSemSub -> 2342.006579 | E16: =LimiteSemSub -> 2342.006579 | F16: =LimiteSemSub -> 2342.006579 | G16: =LimiteSemSub -> 2342.006579 | H16: =LimiteSemSub -> 2342.006579
C17: ISR de Tarifa | D17: =D13/30.4*D11 -> 139.3180637 | E17: =E13/30.4*E11 -> 139.3180637 | F17: =F13/30.4*F11 -> 139.3180637 | G17: =G13/30.4*G11 -> 139.3180637 | H17: =H13/30.4*H11 -> 0 | J17: =((J9-VLOOKUP(J9,TablaMes,1))*VLOOKUP(J9,TablaMes,3))+VLOOKUP(J9,TablaMes,2) -> 532.238192 | K17: Informativo
C18: Subsidio Correspondiente del Periodo | D18: =IF(OR(D10>LimiteMensSub,D9>D16),0,MAX(+D15,0)) -> 109.38 | E18: =IF(OR(E10>LimiteMensSub,E9>E16),0,MAX(+E15-D15,0)) -> 109.38 | F18: =IF(OR(F10>LimiteMensSub,F9>F16),0,MAX(+F15-E15,0)) -> 109.38 | G18: =IF(OR(G10>LimiteMensSub,G9>G16),0,MAX(+G15-F15,0)) -> 146.86 | H18: =IF(OR(H10>LimiteMensSub,H9>H16),0,MAX(+H15-G15,0)) -> 0 | I18: =SUM(D18:H18) -> 475 | J18: =IF(OR(I9>10171,I18>H39),0,I18) -> 475
C19: Subsidio definitivo | D19: =MIN(D18,D17) -> 109.38 | E19: =MIN(E18,E17) -> 109.38 | F19: =MIN(F18,F17) -> 109.38 | G19: =IF(G3=B1,IF(OR(G10>LimiteMensSub,G9>G16),0,MIN(MAX(G15-F20,0),G17)),MIN(G18,G17)) -> 139.3180637 | H19: =IF(OR(H10>LimiteMensSub,H9>H16),0,MIN(MAX(H15-G20,0),H17)) -> 0 | I19: =SUM(D19:H19) -> 467.4580637 | J19: =IF(OR(I9>10171,I19>H39),0,I19) -> 467.4580637
C20: Subsidio acumulado | D20: =D19 -> 109.38 | E20: =E19+D20 -> 218.76 | F20: =F19+E20 -> 328.14 | G20: =G19+F20 -> 467.4580637 | H20: =H19+G20 -> 467.4580637
A21: 002 | B21: Deducción | C21: ISR Retención Semanal | D21: =IF(SMGC*7>=D9,(MAX(D17-D18,0)*$H$35),MAX(D17-D18,0)) -> 0 | E21: =IF(SMGC*7>=E9,(MAX(E17-E18,0)*$H$35),MAX(E17-E18,0)) -> 0 | F21: =IF(SMGC*7>=F9,(MAX(F17-F18,0)*$H$35),MAX(F17-F18,0)) -> 0 | G21: =IF(SMGC*7>=G9,(MAX(G17-G18,0)*$H$35),MAX(G17-G18,0)) -> 0 | H21: =IF(SMGC*7>=H9,(MAX(H17-H18,0)*$H$35),MAX(H17-H18,0)) -> 0 | I21: =SUM(D21:H21)+H24 -> 0 | J21: =MAX(0,J17-J19) -> 64.78012832 | K21: =J21-I21 -> 64.78012832
A22: 002 | B22: Deducción | C22: ISR Retenido de Menos | H22: =IF(H9=0,0,IF(I9>SMGC*I4,MAX(K21,0)*H37,(MAX(K21,0)*H37)*H35)) -> 0
A23: 107 | B23: Deducción | C23: Ajuste al Subsidio Causado | G23: =IF($H$9=0,J23,0) -> 0 | H23: =IF($H$9<>0,J23,0) -> 0 | I23: Resta | J23: =IF(I19>J19,I19,0) -> 0
A24: 002 | B24: Deducción | C24: ISR por ajuste mensual | G24: =IF($H$9=0,J24,0) -> 0 | H24: =IF($H$9<>0,J24,0) -> 0 | I24: Resta | J24: =+J23 -> 0
A25: 007 | B25: Otros Pagos | C25: ISR ajustado por subsidio | G25: =IF($H$9=0,J25,0) -> 0 | H25: =IF($H$9<>0,J25,0) -> 0 | I25: Suma | J25: =+J24 -> 0
A26: 001 | B26: Otros Pagos | C26: Reintegro de ISR retenido en exceso | G26: =IF($H$9=0,J26,0) -> 0 | H26: =IF($H$9<>0,J26,0) -> 0 | I26: Suma | J26: =MAX(0,K21*-1)*H34 -> 0
C27: Neto | D27: =+D9-D21-D24 -> 1951.6 | E27: =+E9-E21-E24 -> 1951.6 | F27: =+F9-F21-F24 -> 1951.6 | G27: =+G9-G21-G24 -> 1951.6 | H27: =+H9-H21-H24-H22 -> 0
H31: =IF(H9=0,0,IF(I9>SMGC*I4,MAX(K21,0)*H37,(MAX(K21,0)*H37)*H35)) -> 0
A33: Bandera | G33: Opcion | H33: Auxilar Opción
A34: 1) | B34: Activar "001 Otros Pagos, Reintegro de ISR Retenido en Exceso" | G34: =+Instrucciones!F15 -> No | H34: =IF(G34="Si",1,0) -> 0 | J34: =IF(G34="si",1,0) -> 0
A35: 2) | B35: Retener ISR aunque el trabajador gane el minimo | G35: No | H35: =IF(G35="Si",1,0) -> 0
A36: 3) | B36: Monto de Subisdio a pagar Máximo (475 o por Días del Periodo) | G36: =+Instrucciones!F17 -> 475 | H36: =IF(G36=475,475,MIN(SUM(D4:H4)*15.62,475)) -> 475
A37: 4) | B37: Retener ISR de menos en el ajuste mensual (periodos de 5 semanas) | G37: =+Instrucciones!F18 -> Si | H37: =IF(G37="Si",1,0) -> 1
A39: 5) | B39: En periodos de mas de 4 semanas, topar a (475 o 35 días de Subsidio) | G39: =+Instrucciones!F20 -> 475 | H39: =IF(G39=475,475,546.7) -> 475

Sheet M-03
A1: Número de periodos en el mes | B1: 4 | C1: Nota: Si vas a realizar el cálculo con 4 semanas, asegúrate de poner en cero los días pagados del periodo 5!!!!
D2: P E R I O D O S | N2: Dias | O2: Varios | P2: Deduccion 002 | Q2: Deduccion 002 | R2: Deduccion 002 | S2: Sin Concepto | T2: Deducción 107 | U2: Otro Pagos 001
A3: Cve SAT | B3: Tipo Concepto | C3: Concepto | D3: 1 | E3: 2 | F3: 3 | G3: 4 | H3: 5 | I3: Acumulados Periodo | J3: Recalculo | K3: Diferencia | M3: Mes | N3: Acumulado Dias | O3: Ingreso Acumulable del Mes | P3: ISR Retenido del Mes | Q3: ISR Retenido de Menos | R3: ISR Por Ajuste Mensual | S3: Subsidio Correspondiente | T3: Ajuste al Subsidio Causado | U3: Reintegro de ISR Retenido en Exceso | V3: ISR Neto | W3: Subsidio Correspondiente Neto
C4: Dias Periodo/Calendario | D4: 7 | E4: 7 | F4: =+E4 -> 7 | G4: 7 | I4: =SUM(D4:H4) -> 28 | M4: 3 | N4: =+I4 -> 28 | O4: =+I9 -> 7806.4 | P4: =SUM(D21:H21) -> 0 | Q4: =+H22 -> 0 | R4: =+J24 -> 0 | S4: =+I18 -> 475 | T4: =+J25 -> 0 | U4: =+J26 -> 0 | V4: =+P4+Q4+R4 -> 0 | W4: =+S4-T4 -> 475
C5: Dias Pagados | D5: 7 | E5: 7 | F5: 7 | G5: 7
C6: Salario Diario | D6: =+'M-01'!D6 -> 278.8 | E6: =+D6 -> 278.8 | F6: =+E6 -> 278.8 | G6: 278.8
C7: Ingreso Ordinario | D7: =D5*D6 -> 1951.6 | E7: =E5*E6 -> 1951.6 | F7: =F5*F6 -> 1951.6 | G7: =G5*G6 -> 1951.6 | H7: =H5*H6 -> 0 | I7: =SUM(D7:H7) -> 7806.4
A8: Varias | B8: Percepción | C8: Ingreso ExtraOrdinario
A9: Varias | B9: Percepción | C9: Ingreso Gravado Acumulable | D9: =+D8+D7 -> 1951.6 | E9: =+E8+E7 -> 1951.6 | F9: =+F8+F7 -> 1951.6 | G9: =+G8+G7 -> 1951.6 | H9: =+H8+H7 -> 0 | I9: =SUM(D9:H9) -> 7806.4 | J9: =I9 -> 7806.4 | K9: =+I9 -> 7806.4
B10: Ocultos | C10: Oculto Acumulado para 8,091 | D10: =+D9 -> 1951.6 | E10: =+D10+E9 -> 3903.2 | F10: =+E10+F9 -> 5854.8 | G10: =+F10+G9 -> 7806.4 | H10: =+G10+H9 -> 7806.4
B11: Ocultos | C11: Dias a Tomar Para Elevar/DesElevar | D11: =+D4 -> 7 | E11: =+E4 -> 7 | F11: =+F4 -> 7 | G11: =+G4 -> 7 | H11: =+H4 -> 0
B12: Ocultos | C12: Base gravada elevada al mes | D12: =IF(D9=0,0,D9/D11*30.4) -> 8475.52 | E12: =IF(E9=0,0,E9/E11*30.4) -> 8475.52 | F12: =IF(F9=0,0,F9/F11*30.4) -> 8475.52 | G12: =IF(G9=0,0,G9/G11*30.4) -> 8475.52 | H12: =IF(H4=0,0,IF(H9=0,0,H9/H11*30.4)) -> 0
B13: Ocultos | C13: ISR directo elevado al mes | D13: =((D12-VLOOKUP(D12,TablaMes,1))*VLOOKUP(D12,TablaMes,3))+VLOOKUP(D12,TablaMes,2) -> 605.038448 | E13: =((E12-VLOOKUP(E12,TablaMes,1))*VLOOKUP(E12,TablaMes,3))+VLOOKUP(E12,TablaMes,2) -> 605.038448 | F13: =((F12-VLOOKUP(F12,TablaMes,1))*VLOOKUP(F12,TablaMes,3))+VLOOKUP(F12,TablaMes,2) -> 605.038448 | G13: =((G12-VLOOKUP(G12,TablaMes,1))*VLOOKUP(G12,TablaMes,3))+VLOOKUP(G12,TablaMes,2) -> 605.038448 | H13: =((H12-VLOOKUP(H12,TablaMes,1))*VLOOKUP(H12,TablaMes,3))+VLOOKUP(H12,TablaMes,2) -> 0
B14: Ocultos | C14: Subsidio semanal dato oculto relacionado | D14: =IF(D4=0,0,SubSem) -> 109.38 | E14: =IF(E4=0,0,SubSem) -> 109.38 | F14: =IF(F4=0,0,SubSem) -> 109.38 | G14: =IF(G4=0,0,SubSem) -> 109.38 | H14: =IF(H4=0,0,SubSem) -> 0
B15: Ocultos | C15: Oculto Para llegar a los 390 | D15: =+D14 -> 109.38 | E15: =IF(E4=0,0,MIN(+D15+E14,$H$36)) -> 218.76 | F15: =IF(F4=0,0,MIN(+E15+F14,$H$36)) -> 328.14 | G15: =IF(G3=B1, MAX(H36,IF(G4=0,0,MIN(F15+G14,$H$36))), IF(G4=0,0,MIN(+F15+G14,$H$36))) -> 475 | H15: =IF(H3=B1, MAX(H36,IF(H4=0,0,MIN(F15+H14,$H$36))), IF(H4=0,0,MIN(+F15+G14,$H$36))) -> 0
B16: Ocultos | C16: Limite para Subsidio Semanal | D16: =LimiteSemSub -> 2342.006579 | E16: =LimiteSemSub -> 2342.006579 | F16: =LimiteSemSub -> 2342.006579 | G16: =LimiteSemSub -> 2342.006579 | H16: =LimiteSemSub -> 2342.006579
C17: ISR de Tarifa | D17: =D13/30.4*D11 -> 139.3180637 | E17: =E13/30.4*E11 -> 139.3180637 | F17: =F13/30.4*F11 -> 139.3180637 | G17: =G13/30.4*G11 -> 139.3180637 | H17: =H13/30.4*H11 -> 0 | J17: =((J9-VLOOKUP(J9,TablaMes,1))*VLOOKUP(J9,TablaMes,3))+VLOOKUP(J9,TablaMes,2) -> 532.238192 | K17: Informativo
C18: Subsidio Correspondiente del Periodo | D18: =IF(OR(D10>LimiteMensSub,D9>D16),0,MAX(+D15,0)) -> 109.38 | E18: =IF(OR(E10>LimiteMensSub,E9>E16),0,MAX(+E15-D15,0)) -> 109.38 | F18: =IF(OR(F10>LimiteMensSub,F9>F16),0,MAX(+F15-E15,0)) -> 109.38 | G18: =IF(OR(G10>LimiteMensSub,G9>G16),0,MAX(+G15-F15,0)) -> 146.86 | H18: =IF(OR(H10>LimiteMensSub,H9>H16),0,MAX(+H15-G15,0)) -> 0 | I18: =SUM(D18:H18) -> 475 | J18: =IF(OR(I9>10171,I18>H39),0,I18) -> 475
C19: Subsidio definitivo | D19: =MIN(D18,D17) -> 109.38 | E19: =MIN(E18,E17) -> 109.38 | F19: =MIN(F18,F17) -> 109.38 | G19: =IF(G3=B1,IF(OR(G10>LimiteMensSub,G9>G16),0,MIN(MAX(G15-F20,0),G17)),MIN(G18,G17)) -> 139.3180637 | H19: =IF(OR(H10>LimiteMensSub,H9>H16),0,MIN(MAX(H15-G20,0),H17)) -> 0 | I19: =SUM(D19:H19) -> 467.4580637 | J19: =IF(OR(I9>10171,I19>H39),0,I19) -> 467.4580637
C20: Subsidio acumulado | D20: =D19 -> 109.38 | E20: =E19+D20 -> 218.76 | F20: =F19+E20 -> 328.14 | G20: =G19+F20 -> 467.4580637 | H20: =H19+G20 -> 467.4580637
A21: 002 | B21: Deducción | C21: ISR Retención Semanal | D21: =IF(SMGC*7>=D9,(MAX(D17-D18,0)*$H$35),MAX(D17-D18,0)) -> 0 | E21: =IF(SMGC*7>=E9,(MAX(E17-E18,0)*$H$35),MAX(E17-E18,0)) -> 0 | F21: =IF(SMGC*7>=F9,(MAX(F17-F18,0)*$H$35),MAX(F17-F18,0)) -> 0 | G21: =IF(SMGC*7>=G9,(MAX(G17-G18,0)*$H$35),MAX(G17-G18,0)) -> 0 | H21: =IF(SMGC*7>=H9,(MAX(H17-H18,0)*$H$35),MAX(H17-H18,0)) -> 0 | I21: =SUM(D21:H21)+H24 -> 0 | J21: =MAX(0,J17-J19) -> 64.78012832 | K21: =J21-I21 -> 64.78012832
A22: 002 | B22: Deducción | C22: ISR Retenido de Menos | H22: =IF(H9=0,0,IF(I9>SMGC*I4,MAX(K21,0)*H37,(MAX(K21,0)*H37)*H35)) -> 0
A23: 107 | B23: Deducción | C23: Ajuste al Subsidio Causado | G23: =IF($H$9=0,J23,0) -> 0 | H23: =IF($H$9<>0,J23,0) -> 0 | I23: Resta | J23: =IF(I19>J19,I19,0) -> 0
A24: 002 | B24: Deducción | C24: ISR por ajuste mensual | G24: =IF($H$9=0,J24,0) -> 0 | H24: =IF($H$9<>0,J24,0) -> 0 | I24: Resta | J24: =+J23 -> 0
A25: 007 | B25: Otros Pagos | C25: ISR ajustado por subsidio | G25: =IF($H$9=0,J25,0) -> 0 | H25: =IF($H$9<>0,J25,0) -> 0 | I25: Suma | J25: =+J24 -> 0
A26: 001 | B26: Otros Pagos | C26: Reintegro de ISR retenido en exceso | G26: =IF($H$9=0,J26,0) -> 0 | H26: =IF($H$9<>0,J26,0) -> 0 | I26: Suma | J26: =MAX(0,K21*-1)*H34 -> 0
C27: Neto | D27: =+D9-D21-D24 -> 1951.6 | E27: =+E9-E21-E24 -> 1951.6 | F27: =+F9-F21-F24 -> 1951.6 | G27: =+G9-G21-G24 -> 1951.6 | H27: =+H9-H21-H24-H22 -> 0
H31: =IF(H9=0,0,IF(I9>SMGC*I4,MAX(K21,0)*H37,(MAX(K21,0)*H37)*H35)) -> 0
A33: Bandera | G33: Opcion | H33: Auxilar Opción
A34: 1) | B34: Activar "001 Otros Pagos, Reintegro de ISR Retenido en Exceso" | G34: No | H34: =IF(G34="Si",1,0) -> 0 | J34: =IF(G34="si",1,0) -> 0
A35: 2) | B35: Retener ISR aunque el trabajador gane el minimo | G35: No | H35: =IF(G35="Si",1,0) -> 0
A36: 3) | B36: Monto de Subisdio a pagar Máximo (475 o por Días del Periodo) | G36: 475 | H36: =IF(G36=475,475,MIN(SUM(D4:H4)*15.62,475)) -> 475
A37: 4) | B37: Retener ISR de menos en el ajuste mensual (periodos de 5 semanas) | G37: =+Instrucciones!F18 -> Si | H37: =IF(G37="Si",1,0) -> 1
A39: 5) | B39: En periodos de mas de 4 semanas, topar a (475 o 35 días de Subsidio) | G39: =+Instrucciones!F20 -> 475 | H39: =IF(G39=475,475,546.7) -> 475

Sheet M-04
A1: Número de periodos en el mes | B1: 4 | C1: Nota: Si vas a realizar el cálculo con 4 semanas, asegúrate de poner en cero los días pagados del periodo 5!!!!
D2: P E R I O D O S | N2: Dias | O2: Varios | P2: Deduccion 002 | Q2: Deduccion 002 | R2: Deduccion 002 | S2: Sin Concepto | T2: Deducción 107 | U2: Otro Pagos 001
A3: Cve SAT | B3: Tipo Concepto | C3: Concepto | D3: 1 | E3: 2 | F3: 3 | G3: 4 | H3: 5 | I3: Acumulados Periodo | J3: Recalculo | K3: Diferencia | M3: Mes | N3: Acumulado Dias | O3: Ingreso Acumulable del Mes | P3: ISR Retenido del Mes | Q3: ISR Retenido de Menos | R3: ISR Por Ajuste Mensual | S3: Subsidio Correspondiente | T3: Ajuste al Subsidio Causado | U3: Reintegro de ISR Retenido en Exceso | V3: ISR Neto | W3: Subsidio Correspondiente Neto
C4: Dias Periodo/Calendario | D4: 7 | E4: 7 | F4: =+E4 -> 7 | G4: 7 | I4: =SUM(D4:H4) -> 28 | M4: 4 | N4: =+I4 -> 28 | O4: =+I9 -> 7806.4 | P4: =SUM(D21:H21) -> 0 | Q4: =+H22 -> 0 | R4: =+J24 -> 0 | S4: =+I18 -> 475 | T4: =+J25 -> 0 | U4: =+J26 -> 0 | V4: =+P4+Q4+R4 -> 0 | W4: =+S4-T4 -> 475
C5: Dias Pagados | D5: 7 | E5: 7 | F5: 7 | G5: 7
C6: Salario Diario | D6: =+'M-01'!D6 -> 278.8 | E6: =+D6 -> 278.8 | F6: =+E6 -> 278.8 | G6: 278.8 | H6: 278.8
C7: Ingreso Ordinario | D7: =D5*D6 -> 1951.6 | E7: =E5*E6 -> 1951.6 | F7: =F5*F6 -> 1951.6 | G7: =G5*G6 -> 1951.6 | H7: =H5*H6 -> 0 | I7: =SUM(D7:H7) -> 7806.4
A8: Varias | B8: Percepción | C8: Ingreso ExtraOrdinario
A9: Varias | B9: Percepción | C9: Ingreso Gravado Acumulable | D9: =+D8+D7 -> 1951.6 | E9: =+E8+E7 -> 1951.6 | F9: =+F8+F7 -> 1951.6 | G9: =+G8+G7 -> 1951.6 | H9: =+H8+H7 -> 0 | I9: =SUM(D9:H9) -> 7806.4 | J9: =I9 -> 7806.4 | K9: =+I9 -> 7806.4
B10: Ocultos | C10: Oculto Acumulado para 8,091 | D10: =+D9 -> 1951.6 | E10: =+D10+E9 -> 3903.2 | F10: =+E10+F9 -> 5854.8 | G10: =+F10+G9 -> 7806.4 | H10: =+G10+H9 -> 7806.4
B11: Ocultos | C11: Dias a Tomar Para Elevar/DesElevar | D11: =+D4 -> 7 | E11: =+E4 -> 7 | F11: =+F4 -> 7 | G11: =+G4 -> 7 | H11: =+H4 -> 0
B12: Ocultos | C12: Base gravada elevada al mes | D12: =IF(D9=0,0,D9/D11*30.4) -> 8475.52 | E12: =IF(E9=0,0,E9/E11*30.4) -> 8475.52 | F12: =IF(F9=0,0,F9/F11*30.4) -> 8475.52 | G12: =IF(G9=0,0,G9/G11*30.4) -> 8475.52 | H12: =IF(H4=0,0,IF(H9=0,0,H9/H11*30.4)) -> 0
B13: Ocultos | C13: ISR directo elevado al mes | D13: =((D12-VLOOKUP(D12,TablaMes,1))*VLOOKUP(D12,TablaMes,3))+VLOOKUP(D12,TablaMes,2) -> 605.038448 | E13: =((E12-VLOOKUP(E12,TablaMes,1))*VLOOKUP(E12,TablaMes,3))+VLOOKUP(E12,TablaMes,2) -> 605.038448 | F13: =((F12-VLOOKUP(F12,TablaMes,1))*VLOOKUP(F12,TablaMes,3))+VLOOKUP(F12,TablaMes,2) -> 605.038448 | G13: =((G12-VLOOKUP(G12,TablaMes,1))*VLOOKUP(G12,TablaMes,3))+VLOOKUP(G12,TablaMes,2) -> 605.038448 | H13: =((H12-VLOOKUP(H12,TablaMes,1))*VLOOKUP(H12,TablaMes,3))+VLOOKUP(H12,TablaMes,2) -> 0
B14: Ocultos | C14: Subsidio semanal dato oculto relacionado | D14: =IF(D4=0,0,SubSem) -> 109.38 | E14: =IF(E4=0,0,SubSem) -> 109.38 | F14: =IF(F4=0,0,SubSem) -> 109.38 | G14: =IF(G4=0,0,SubSem) -> 109.38 | H14: =IF(H4=0,0,SubSem) -> 0
B15: Ocultos | C15: Oculto Para llegar a los 390 | D15: =+D14 -> 109.38 | E15: =IF(E4=0,0,MIN(+D15+E14,$H$36)) -> 218.76 | F15: =IF(F4=0,0,MIN(+E15+F14,$H$36)) -> 328.14 | G15: =IF(G3=B1, MAX(H36,IF(G4=0,0,MIN(F15+G14,$H$36))), IF(G4=0,0,MIN(+F15+G14,$H$36))) -> 475 | H15: =IF(H3=B1, MAX(H36,IF(H4=0,0,MIN(F15+H14,$H$36))), IF(H4=0,0,MIN(+F15+G14,$H$36))) -> 0
B16: Ocultos | C16: Limite para Subsidio Semanal | D16: =LimiteSemSub -> 2342.006579 | E16: =LimiteSemSub -> 2342.006579 | F16: =LimiteSemSub -> 2342.006579 | G16: =LimiteSemSub -> 2342.006579 | H16: =LimiteSemSub -> 2342.006579
C17: ISR de Tarifa | D17: =D13/30.4*D11 -> 139.3180637 | E17: =E13/30.4*E11 -> 139.3180637 | F17: =F13/30.4*F11 -> 139.3180637 | G17: =G13/30.4*G11 -> 139.3180637 | H17: =H13/30.4*H11 -> 0 | J17: =((J9-VLOOKUP(J9,TablaMes,1))*VLOOKUP(J9,TablaMes,3))+VLOOKUP(J9,TablaMes,2) -> 532.238192 | K17: Informativo
C18: Subsidio Correspondiente del Periodo | D18: =IF(OR(D10>LimiteMensSub,D9>D16),0,MAX(+D15,0)) -> 109.38 | E18: =IF(OR(E10>LimiteMensSub,E9>E16),0,MAX(+E15-D15,0)) -> 109.38 | F18: =IF(OR(F10>LimiteMensSub,F9>F16),0,MAX(+F15-E15,0)) -> 109.38 | G18: =IF(OR(G10>LimiteMensSub,G9>G16),0,MAX(+G15-F15,0)) -> 146.86 | H18: =IF(OR(H10>LimiteMensSub,H9>H16),0,MAX(+H15-G15,0)) -> 0 | I18: =SUM(D18:H18) -> 475 | J18: =IF(OR(I9>10171,I18>H39),0,I18) -> 475
C19: Subsidio definitivo | D19: =MIN(D18,D17) -> 109.38 | E19: =MIN(E18,E17) -> 109.38 | F19: =MIN(F18,F17) -> 109.38 | G19: =IF(G3=B1,IF(OR(G10>LimiteMensSub,G9>G16),0,MIN(MAX(G15-F20,0),G17)),MIN(G18,G17)) -> 139.3180637 | H19: =IF(OR(H10>LimiteMensSub,H9>H16),0,MIN(MAX(H15-G20,0),H17)) -> 0 | I19: =SUM(D19:H19) -> 467.4580637 | J19: =IF(OR(I9>10171,I19>H39),0,I19) -> 467.4580637
C20: Subsidio acumulado | D20: =D19 -> 109.38 | E20: =E19+D20 -> 218.76 | F20: =F19+E20 -> 328.14 | G20: =G19+F20 -> 467.4580637 | H20: =H19+G20 -> 467.4580637
A21: 002 | B21: Deducción | C21: ISR Retención Semanal | D21: =IF(SMGC*7>=D9,(MAX(D17-D18,0)*$H$35),MAX(D17-D18,0)) -> 0 | E21: =IF(SMGC*7>=E9,(MAX(E17-E18,0)*$H$35),MAX(E17-E18,0)) -> 0 | F21: =IF(SMGC*7>=F9,(MAX(F17-F18,0)*$H$35),MAX(F17-F18,0)) -> 0 | G21: =IF(SMGC*7>=G9,(MAX(G17-G18,0)*$H$35),MAX(G17-G18,0)) -> 0 | H21: =IF(SMGC*7>=H9,(MAX(H17-H18,0)*$H$35),MAX(H17-H18,0)) -> 0 | I21: =SUM(D21:H21)+H24 -> 0 | J21: =MAX(0,J17-J19) -> 64.78012832 | K21: =J21-I21 -> 64.78012832
A22: 002 | B22: Deducción | C22: ISR Retenido de Menos | H22: =IF(H9=0,0,IF(I9>SMGC*I4,MAX(K21,0)*H37,(MAX(K21,0)*H37)*H35)) -> 0
A23: 107 | B23: Deducción | C23: Ajuste al Subsidio Causado | G23: =IF($H$9=0,J23,0) -> 0 | H23: =IF($H$9<>0,J23,0) -> 0 | I23: Resta | J23: =IF(I19>J19,I19,0) -> 0
A24: 002 | B24: Deducción | C24: ISR por ajuste mensual | G24: =IF($H$9=0,J24,0) -> 0 | H24: =IF($H$9<>0,J24,0) -> 0 | I24: Resta | J24: =+J23 -> 0
A25: 007 | B25: Otros Pagos | C25: ISR ajustado por subsidio | G25: =IF($H$9=0,J25,0) -> 0 | H25: =IF($H$9<>0,J25,0) -> 0 | I25: Suma | J25: =+J24 -> 0
A26: 001 | B26: Otros Pagos | C26: Reintegro de ISR retenido en exceso | G26: =IF($H$9=0,J26,0) -> 0 | H26: =IF($H$9<>0,J26,0) -> 0 | I26: Suma | J26: =MAX(0,K21*-1)*H34 -> 0
C27: Neto | D27: =+D9-D21-D24 -> 1951.6 | E27: =+E9-E21-E24 -> 1951.6 | F27: =+F9-F21-F24 -> 1951.6 | G27: =+G9-G21-G24 -> 1951.6 | H27: =+H9-H21-H24-H22 -> 0
H31: =IF(H9=0,0,IF(I9>SMGC*I4,MAX(K21,0)*H37,(MAX(K21,0)*H37)*H35)) -> 0
A33: Bandera | G33: Opcion | H33: Auxilar Opción
A34: 1) | B34: Activar "001 Otros Pagos, Reintegro de ISR Retenido en Exceso" | G34: =+Instrucciones!F15 -> No | H34: =IF(G34="Si",1,0) -> 0 | J34: =IF(G34="si",1,0) -> 0
A35: 2) | B35: Retener ISR aunque el trabajador gane el minimo | G35: No | H35: =IF(G35="Si",1,0) -> 0
A36: 3) | B36: Monto de Subisdio a pagar Máximo (475 o por Días del Periodo) | G36: =+Instrucciones!F17 -> 475 | H36: =IF(G36=475,475,MIN(SUM(D4:H4)*15.62,475)) -> 475
A37: 4) | B37: Retener ISR de menos en el ajuste mensual (periodos de 5 semanas) | G37: =+Instrucciones!F18 -> Si | H37: =IF(G37="Si",1,0) -> 1
A39: 5) | B39: En periodos de mas de 4 semanas, topar a (475 o 35 días de Subsidio) | G39: =+Instrucciones!F20 -> 475 | H39: =IF(G39=475,475,546.7) -> 475

Sheet M-05
A1: Número de periodos en el mes | B1: 5 | C1: Nota: Si vas a realizar el cálculo con 4 semanas, asegúrate de poner en cero los días pagados del periodo 5!!!!
D2: P E R I O D O S | N2: Dias | O2: Varios | P2: Deduccion 002 | Q2: Deduccion 002 | R2: Deduccion 002 | S2: Sin Concepto | T2: Deducción 107 | U2: Otro Pagos 001
A3: Cve SAT | B3: Tipo Concepto | C3: Concepto | D3: 1 | E3: 2 | F3: 3 | G3: 4 | H3: 5 | I3: Acumulados Periodo | J3: Recalculo | K3: Diferencia | M3: Mes | N3: Acumulado Dias | O3: Ingreso Acumulable del Mes | P3: ISR Retenido del Mes | Q3: ISR Retenido de Menos | R3: ISR Por Ajuste Mensual | S3: Subsidio Correspondiente | T3: Ajuste al Subsidio Causado | U3: Reintegro de ISR Retenido en Exceso | V3: ISR Neto | W3: Subsidio Correspondiente Neto
C4: Dias Periodo/Calendario | D4: 7 | E4: 7 | F4: =+E4 -> 7 | G4: 7 | H4: 7 | I4: =SUM(D4:H4) -> 35 | M4: 5 | N4: =+I4 -> 35 | O4: =+I9 -> 9758 | P4: =SUM(D21:H21) -> 0 | Q4: =+H22 -> 0 | R4: =+J24 -> 0 | S4: =+I18 -> 475 | T4: =+J25 -> 0 | U4: =+J26 -> 0 | V4: =+P4+Q4+R4 -> 0 | W4: =+S4-T4 -> 475
C5: Dias Pagados | D5: 7 | E5: 7 | F5: 7 | G5: 7 | H5: 7
C6: Salario Diario | D6: 278.8 | E6: =+D6 -> 278.8 | F6: =+E6 -> 278.8 | G6: 278.8 | H6: 278.8
C7: Ingreso Ordinario | D7: =D5*D6 -> 1951.6 | E7: =E5*E6 -> 1951.6 | F7: =F5*F6 -> 1951.6 | G7: =G5*G6 -> 1951.6 | H7: =H5*H6 -> 1951.6 | I7: =SUM(D7:H7) -> 9758
A8: Varias | B8: Percepción | C8: Ingreso ExtraOrdinario
A9: Varias | B9: Percepción | C9: Ingreso Gravado Acumulable | D9: =+D8+D7 -> 1951.6 | E9: =+E8+E7 -> 1951.6 | F9: =+F8+F7 -> 1951.6 | G9: =+G8+G7 -> 1951.6 | H9: =+H8+H7 -> 1951.6 | I9: =SUM(D9:H9) -> 9758 | J9: =I9 -> 9758 | K9: =+I9 -> 9758
B10: Ocultos | C10: Oculto Acumulado para 8,091 | D10: =+D9 -> 1951.6 | E10: =+D10+E9 -> 3903.2 | F10: =+E10+F9 -> 5854.8 | G10: =+F10+G9 -> 7806.4 | H10: =+G10+H9 -> 9758
B11: Ocultos | C11: Dias a Tomar Para Elevar/DesElevar | D11: =+D4 -> 7 | E11: =+E4 -> 7 | F11: =+F4 -> 7 | G11: =+G4 -> 7 | H11: =+H4 -> 7
B12: Ocultos | C12: Base gravada elevada al mes | D12: =IF(D9=0,0,D9/D11*30.4) -> 8475.52 | E12: =IF(E9=0,0,E9/E11*30.4) -> 8475.52 | F12: =IF(F9=0,0,F9/F11*30.4) -> 8475.52 | G12: =IF(G9=0,0,G9/G11*30.4) -> 8475.52 | H12: =IF(H4=0,0,IF(H9=0,0,H9/H11*30.4)) -> 8475.52
B13: Ocultos | C13: ISR directo elevado al mes | D13: =((D12-VLOOKUP(D12,TablaMes,1))*VLOOKUP(D12,TablaMes,3))+VLOOKUP(D12,TablaMes,2) -> 605.038448 | E13: =((E12-VLOOKUP(E12,TablaMes,1))*VLOOKUP(E12,TablaMes,3))+VLOOKUP(E12,TablaMes,2) -> 605.038448 | F13: =((F12-VLOOKUP(F12,TablaMes,1))*VLOOKUP(F12,TablaMes,3))+VLOOKUP(F12,TablaMes,2) -> 605.038448 | G13: =((G12-VLOOKUP(G12,TablaMes,1))*VLOOKUP(G12,TablaMes,3))+VLOOKUP(G12,TablaMes,2) -> 605.038448 | H13: =((H12-VLOOKUP(H12,TablaMes,1))*VLOOKUP(H12,TablaMes,3))+VLOOKUP(H12,TablaMes,2) -> 605.038448
B14: Ocultos | C14: Subsidio semanal dato oculto relacionado | D14: =IF(D4=0,0,SubSem) -> 109.38 | E14: =IF(E4=0,0,SubSem) -> 109.38 | F14: =IF(F4=0,0,SubSem) -> 109.38 | G14: =IF(G4=0,0,SubSem) -> 109.38 | H14: =IF(H4=0,0,SubSem) -> 109.38
B15: Ocultos | C15: Oculto Para llegar a los 390 | D15: =+D14 -> 109.38 | E15: =IF(E4=0,0,MIN(+D15+E14,$H$36)) -> 218.76 | F15: =IF(F4=0,0,MIN(+E15+F14,$H$36)) -> 328.14 | G15: =IF(G3=B1, MAX(H36,IF(G4=0,0,MIN(F15+G14,$H$36))), IF(G4=0,0,MIN(+F15+G14,$H$36))) -> 437.52 | H15: =IF(H3=B1, MAX(H36,IF(H4=0,0,MIN(F15+H14,$H$36))), IF(H4=0,0,MIN(+F15+G14,$H$36))) -> 475
B16: Ocultos | C16: Limite para Subsidio Semanal | D16: =LimiteSemSub -> 2342.006579 | E16: =LimiteSemSub -> 2342.006579 | F16: =LimiteSemSub -> 2342.006579 | G16: =LimiteSemSub -> 2342.006579 | H16: =LimiteSemSub -> 2342.006579
C17: ISR de Tarifa | D17: =D13/30.4*D11 -> 139.3180637 | E17: =E13/30.4*E11 -> 139.3180637 | F17: =F13/30.4*F11 -> 139.3180637 | G17: =G13/30.4*G11 -> 139.3180637 | H17: =H13/30.4*H11 -> 139.3180637 | J17: =((J9-VLOOKUP(J9,TablaMes,1))*VLOOKUP(J9,TablaMes,3))+VLOOKUP(J9,TablaMes,2) -> 744.572272 | K17: Informativo
C18: Subsidio Correspondiente del Periodo | D18: =IF(OR(D10>LimiteMensSub,D9>D16),0,MAX(+D15,0)) -> 109.38 | E18: =IF(OR(E10>LimiteMensSub,E9>E16),0,MAX(+E15-D15,0)) -> 109.38 | F18: =IF(OR(F10>LimiteMensSub,F9>F16),0,MAX(+F15-E15,0)) -> 109.38 | G18: =IF(OR(G10>LimiteMensSub,G9>G16),0,MAX(+G15-F15,0)) -> 109.38 | H18: =IF(OR(H10>LimiteMensSub,H9>H16),0,MAX(+H15-G15,0)) -> 37.48 | I18: =SUM(D18:H18) -> 475 | J18: =IF(OR(I9>10171,I18>H39),0,I18) -> 475
C19: Subsidio definitivo | D19: =MIN(D18,D17) -> 109.38 | E19: =MIN(E18,E17) -> 109.38 | F19: =MIN(F18,F17) -> 109.38 | G19: =IF(G3=B1,IF(OR(G10>LimiteMensSub,G9>G16),0,MIN(MAX(G15-F20,0),G17)),MIN(G18,G17)) -> 109.38 | H19: =IF(OR(H10>LimiteMensSub,H9>H16),0,MIN(MAX(H15-G20,0),H17)) -> 37.48 | I19: =SUM(D19:H19) -> 475 | J19: =IF(OR(I9>10171,I19>H39),0,I19) -> 475
C20: Subsidio acumulado | D20: =D19 -> 109.38 | E20: =E19+D20 -> 218.76 | F20: =F19+E20 -> 328.14 | G20: =G19+F20 -> 437.52 | H20: =H19+G20 -> 475
A21: 002 | B21: Deducción | C21: ISR Retención Semanal | D21: =IF(SMGC*7>=D9,(MAX(D17-D18,0)*$H$35),MAX(D17-D18,0)) -> 0 | E21: =IF(SMGC*7>=E9,(MAX(E17-E18,0)*$H$35),MAX(E17-E18,0)) -> 0 | F21: =IF(SMGC*7>=F9,(MAX(F17-F18,0)*$H$35),MAX(F17-F18,0)) -> 0 | G21: =IF(SMGC*7>=G9,(MAX(G17-G18,0)*$H$35),MAX(G17-G18,0)) -> 0 | H21: =IF(SMGC*7>=H9,(MAX(H17-H18,0)*$H$35),MAX(H17-H18,0)) -> 0 | I21: =SUM(D21:H21)+H24 -> 0 | J21: =MAX(0,J17-J19) -> 269.572272 | K21: =J21-I21 -> 269.572272
A22: 002 | B22: Deducción | C22: ISR Retenido de Menos | H22: =IF(H9=0,0,IF(I9>SMGC*I4,MAX(K21,0)*H37,(MAX(K21,0)*H37)*H35)) -> 0
A23: 107 | B23: Deducción | C23: Ajuste al Subsidio Causado | G23: =IF($H$9=0,J23,0) -> 0 | H23: =IF($H$9<>0,J23,0) -> 0 | I23: Resta | J23: =IF(I19>J19,I19,0) -> 0
A24: 002 | B24: Deducción | C24: ISR por ajuste mensual | G24: =IF($H$9=0,J24,0) -> 0 | H24: =IF($H$9<>0,J24,0) -> 0 | I24: Resta | J24: =+J23 -> 0
A25: 007 | B25: Otros Pagos | C25: ISR ajustado por subsidio | G25: =IF($H$9=0,J25,0) -> 0 | H25: =IF($H$9<>0,J25,0) -> 0 | I25: Suma | J25: =+J24 -> 0
A26: 001 | B26: Otros Pagos | C26: Reintegro de ISR retenido en exceso | G26: =IF($H$9=0,J26,0) -> 0 | H26: =IF($H$9<>0,J26,0) -> 0 | I26: Suma | J26: =MAX(0,K21*-1)*H34 -> 0
C27: Neto | D27: =+D9-D21-D24 -> 1951.6 | E27: =+E9-E21-E24 -> 1951.6 | F27: =+F9-F21-F24 -> 1951.6 | G27: =+G9-G21-G24 -> 1951.6 | H27: =+H9-H21-H24-H22 -> 1951.6
H31: =IF(H9=0,0,IF(I9>SMGC*I4,MAX(K21,0)*H37,(MAX(K21,0)*H37)*H35)) -> 0
A33: Bandera | G33: Opcion | H33: Auxilar Opción
A34: 1) | B34: Activar "001 Otros Pagos, Reintegro de ISR Retenido en Exceso" | G34: No | H34: =IF(G34="Si",1,0) -> 0 | J34: =IF(G34="si",1,0) -> 0
A35: 2) | B35: Retener ISR aunque el trabajador gane el minimo | G35: No | H35: =IF(G35="Si",1,0) -> 0
A36: 3) | B36: Monto de Subisdio a pagar Máximo (475 o por Días del Periodo) | G36: =+Instrucciones!F17 -> 475 | H36: =IF(G36=475,475,MIN(SUM(D4:H4)*15.62,475)) -> 475
A37: 4) | B37: Retener ISR de menos en el ajuste mensual (periodos de 5 semanas) | G37: =+Instrucciones!F18 -> Si | H37: =IF(G37="Si",1,0) -> 1
A39: 5) | B39: En periodos de mas de 4 semanas, topar a (475 o 35 días de Subsidio) | G39: =+Instrucciones!F20 -> 475 | H39: =IF(G39=475,475,546.7) -> 475

Sheet M-06
A1: Número de periodos en el mes | B1: 4 | C1: Nota: Si vas a realizar el cálculo con 4 semanas, asegúrate de poner en cero los días pagados del periodo 5!!!!
D2: P E R I O D O S | N2: Dias | O2: Varios | P2: Deduccion 002 | Q2: Deduccion 002 | R2: Deduccion 002 | S2: Sin Concepto | T2: Deducción 107 | U2: Otro Pagos 001
A3: Cve SAT | B3: Tipo Concepto | C3: Concepto | D3: 1 | E3: 2 | F3: 3 | G3: 4 | H3: 5 | I3: Acumulados Periodo | J3: Recalculo | K3: Diferencia | M3: Mes | N3: Acumulado Dias | O3: Ingreso Acumulable del Mes | P3: ISR Retenido del Mes | Q3: ISR Retenido de Menos | R3: ISR Por Ajuste Mensual | S3: Subsidio Correspondiente | T3: Ajuste al Subsidio Causado | U3: Reintegro de ISR Retenido en Exceso | V3: ISR Neto | W3: Subsidio Correspondiente Neto
C4: Dias Periodo/Calendario | D4: 7 | E4: 7 | F4: =+E4 -> 7 | G4: 7 | I4: =SUM(D4:H4) -> 28 | M4: 6 | N4: =+I4 -> 28 | O4: =+I9 -> 7806.4 | P4: =SUM(D21:H21) -> 0 | Q4: =+H22 -> 0 | R4: =+J24 -> 0 | S4: =+I18 -> 475 | T4: =+J25 -> 0 | U4: =+J26 -> 0 | V4: =+P4+Q4+R4 -> 0 | W4: =+S4-T4 -> 475
C5: Dias Pagados | D5: 7 | E5: 7 | F5: 7 | G5: 7
C6: Salario Diario | D6: =+'M-01'!D6 -> 278.8 | E6: =+D6 -> 278.8 | F6: =+E6 -> 278.8 | G6: 278.8 | H6: 278.8
C7: Ingreso Ordinario | D7: =D5*D6 -> 1951.6 | E7: =E5*E6 -> 1951.6 | F7: =F5*F6 -> 1951.6 | G7: =G5*G6 -> 1951.6 | H7: =H5*H6 -> 0 | I7: =SUM(D7:H7) -> 7806.4
A8: Varias | B8: Percepción | C8: Ingreso ExtraOrdinario
A9: Varias | B9: Percepción | C9: Ingreso Gravado Acumulable | D9: =+D8+D7 -> 1951.6 | E9: =+E8+E7 -> 1951.6 | F9: =+F8+F7 -> 1951.6 | G9: =+G8+G7 -> 1951.6 | H9: =+H8+H7 -> 0 | I9: =SUM(D9:H9) -> 7806.4 | J9: =I9 -> 7806.4 | K9: =+I9 -> 7806.4
B10: Ocultos | C10: Oculto Acumulado para 8,091 | D10: =+D9 -> 1951.6 | E10: =+D10+E9 -> 3903.2 | F10: =+E10+F9 -> 5854.8 | G10: =+F10+G9 -> 7806.4 | H10: =+G10+H9 -> 7806.4
B11: Ocultos | C11: Dias a Tomar Para Elevar/DesElevar | D11: =+D4 -> 7 | E11: =+E4 -> 7 | F11: =+F4 -> 7 | G11: =+G4 -> 7 | H11: =+H4 -> 0
B12: Ocultos | C12: Base gravada elevada al mes | D12: =IF(D9=0,0,D9/D11*30.4) -> 8475.52 | E12: =IF(E9=0,0,E9/E11*30.4) -> 8475.52 | F12: =IF(F9=0,0,F9/F11*30.4) -> 8475.52 | G12: =IF(G9=0,0,G9/G11*30.4) -> 8475.52 | H12: =IF(H4=0,0,IF(H9=0,0,H9/H11*30.4)) -> 0
B13: Ocultos | C13: ISR directo elevado al mes | D13: =((D12-VLOOKUP(D12,TablaMes,1))*VLOOKUP(D12,TablaMes,3))+VLOOKUP(D12,TablaMes,2) -> 605.038448 | E13: =((E12-VLOOKUP(E12,TablaMes,1))*VLOOKUP(E12,TablaMes,3))+VLOOKUP(E12,TablaMes,2) -> 605.038448 | F13: =((F12-VLOOKUP(F12,TablaMes,1))*VLOOKUP(F12,TablaMes,3))+VLOOKUP(F12,TablaMes,2) -> 605.038448 | G13: =((G12-VLOOKUP(G12,TablaMes,1))*VLOOKUP(G12,TablaMes,3))+VLOOKUP(G12,TablaMes,2) -> 605.038448 | H13: =((H12-VLOOKUP(H12,TablaMes,1))*VLOOKUP(H12,TablaMes,3))+VLOOKUP(H12,TablaMes,2) -> 0
B14: Ocultos | C14: Subsidio semanal dato oculto relacionado | D14: =IF(D4=0,0,SubSem) -> 109.38 | E14: =IF(E4=0,0,SubSem) -> 109.38 | F14: =IF(F4=0,0,SubSem) -> 109.38 | G14: =IF(G4=0,0,SubSem) -> 109.38 | H14: =IF(H4=0,0,SubSem) -> 0
B15: Ocultos | C15: Oculto Para llegar a los 390 | D15: =+D14 -> 109.38 | E15: =IF(E4=0,0,MIN(+D15+E14,$H$36)) -> 218.76 | F15: =IF(F4=0,0,MIN(+E15+F14,$H$36)) -> 328.14 | G15: =IF(G3=B1, MAX(H36,IF(G4=0,0,MIN(F15+G14,$H$36))), IF(G4=0,0,MIN(+F15+G14,$H$36))) -> 475 | H15: =IF(H3=B1, MAX(H36,IF(H4=0,0,MIN(F15+H14,$H$36))), IF(H4=0,0,MIN(+F15+G14,$H$36))) -> 0
B16: Ocultos | C16: Limite para Subsidio Semanal | D16: =LimiteSemSub -> 2342.006579 | E16: =LimiteSemSub -> 2342.006579 | F16: =LimiteSemSub -> 2342.006579 | G16: =LimiteSemSub -> 2342.006579 | H16: =LimiteSemSub -> 2342.006579
C17: ISR de Tarifa | D17: =D13/30.4*D11 -> 139.3180637 | E17: =E13/30.4*E11 -> 139.3180637 | F17: =F13/30.4*F11 -> 139.3180637 | G17: =G13/30.4*G11 -> 139.3180637 | H17: =H13/30.4*H11 -> 0 | J17: =((J9-VLOOKUP(J9,TablaMes,1))*VLOOKUP(J9,TablaMes,3))+VLOOKUP(J9,TablaMes,2) -> 532.238192 | K17: Informativo
C18: Subsidio Correspondiente del Periodo | D18: =IF(OR(D10>LimiteMensSub,D9>D16),0,MAX(+D15,0)) -> 109.38 | E18: =IF(OR(E10>LimiteMensSub,E9>E16),0,MAX(+E15-D15,0)) -> 109.38 | F18: =IF(OR(F10>LimiteMensSub,F9>F16),0,MAX(+F15-E15,0)) -> 109.38 | G18: =IF(OR(G10>LimiteMensSub,G9>G16),0,MAX(+G15-F15,0)) -> 146.86 | H18: =IF(OR(H10>LimiteMensSub,H9>H16),0,MAX(+H15-G15,0)) -> 0 | I18: =SUM(D18:H18) -> 475 | J18: =IF(OR(I9>10171,I18>H39),0,I18) -> 475
C19: Subsidio definitivo | D19: =MIN(D18,D17) -> 109.38 | E19: =MIN(E18,E17) -> 109.38 | F19: =MIN(F18,F17) -> 109.38 | G19: =IF(G3=B1,IF(OR(G10>LimiteMensSub,G9>G16),0,MIN(MAX(G15-F20,0),G17)),MIN(G18,G17)) -> 139.3180637 | H19: =IF(OR(H10>LimiteMensSub,H9>H16),0,MIN(MAX(H15-G20,0),H17)) -> 0 | I19: =SUM(D19:H19) -> 467.4580637 | J19: =IF(OR(I9>10171,I19>H39),0,I19) -> 467.4580637
C20: Subsidio acumulado | D20: =D19 -> 109.38 | E20: =E19+D20 -> 218.76 | F20: =F19+E20 -> 328.14 | G20: =G19+F20 -> 467.4580637 | H20: =H19+G20 -> 467.4580637
A21: 002 | B21: Deducción | C21: ISR Retención Semanal | D21: =IF(SMGC*7>=D9,(MAX(D17-D18,0)*$H$35),MAX(D17-D18,0)) -> 0 | E21: =IF(SMGC*7>=E9,(MAX(E17-E18,0)*$H$35),MAX(E17-E18,0)) -> 0 | F21: =IF(SMGC*7>=F9,(MAX(F17-F18,0)*$H$35),MAX(F17-F18,0)) -> 0 | G21: =IF(SMGC*7>=G9,(MAX(G17-G18,0)*$H$35),MAX(G17-G18,0)) -> 0 | H21: =IF(SMGC*7>=H9,(MAX(H17-H18,0)*$H$35),MAX(H17-H18,0)) -> 0 | I21: =SUM(D21:H21)+H24 -> 0 | J21: =MAX(0,J17-J19) -> 64.78012832 | K21: =J21-I21 -> 64.78012832
A22: 002 | B22: Deducción | C22: ISR Retenido de Menos | H22: =IF(H9=0,0,IF(I9>SMGC*I4,MAX(K21,0)*H37,(MAX(K21,0)*H37)*H35)) -> 0
A23: 107 | B23: Deducción | C23: Ajuste al Subsidio Causado | G23: =IF($H$9=0,J23,0) -> 0 | H23: =IF($H$9<>0,J23,0) -> 0 | I23: Resta | J23: =IF(I19>J19,I19,0) -> 0
A24: 002 | B24: Deducción | C24: ISR por ajuste mensual | G24: =IF($H$9=0,J24,0) -> 0 | H24: =IF($H$9<>0,J24,0) -> 0 | I24: Resta | J24: =+J23 -> 0
A25: 007 | B25: Otros Pagos | C25: ISR ajustado por subsidio | G25: =IF($H$9=0,J25,0) -> 0 | H25: =IF($H$9<>0,J25,0) -> 0 | I25: Suma | J25: =+J24 -> 0
A26: 001 | B26: Otros Pagos | C26: Reintegro de ISR retenido en exceso | G26: =IF($H$9=0,J26,0) -> 0 | H26: =IF($H$9<>0,J26,0) -> 0 | I26: Suma | J26: =MAX(0,K21*-1)*H34 -> 0
C27: Neto | D27: =+D9-D21-D24 -> 1951.6 | E27: =+E9-E21-E24 -> 1951.6 | F27: =+F9-F21-F24 -> 1951.6 | G27: =+G9-G21-G24 -> 1951.6 | H27: =+H9-H21-H24-H22 -> 0
H31: =IF(H9=0,0,IF(I9>SMGC*I4,MAX(K21,0)*H37,(MAX(K21,0)*H37)*H35)) -> 0
A33: Bandera | G33: Opcion | H33: Auxilar Opción
A34: 1) | B34: Activar "001 Otros Pagos, Reintegro de ISR Retenido en Exceso" | G34: =+Instrucciones!F15 -> No | H34: =IF(G34="Si",1,0) -> 0 | J34: =IF(G34="si",1,0) -> 0
A35: 2) | B35: Retener ISR aunque el trabajador gane el minimo | G35: No | H35: =IF(G35="Si",1,0) -> 0
A36: 3) | B36: Monto de Subisdio a pagar Máximo (475 o por Días del Periodo) | G36: =+Instrucciones!F17 -> 475 | H36: =IF(G36=475,475,MIN(SUM(D4:H4)*15.62,475)) -> 475
A37: 4) | B37: Retener ISR de menos en el ajuste mensual (periodos de 5 semanas) | G37: =+Instrucciones!F18 -> Si | H37: =IF(G37="Si",1,0) -> 1
A39: 5) | B39: En periodos de mas de 4 semanas, topar a (475 o 35 días de Subsidio) | G39: =+Instrucciones!F20 -> 475 | H39: =IF(G39=475,475,546.7) -> 475

Sheet M-07
A1: Número de periodos en el mes | B1: 5 | C1: Nota: Si vas a realizar el cálculo con 4 semanas, asegúrate de poner en cero los días pagados del periodo 5!!!!
D2: P E R I O D O S | N2: Dias | O2: Varios | P2: Deduccion 002 | Q2: Deduccion 002 | R2: Deduccion 002 | S2: Sin Concepto | T2: Deducción 107 | U2: Otro Pagos 001
A3: Cve SAT | B3: Tipo Concepto | C3: Concepto | D3: 1 | E3: 2 | F3: 3 | G3: 4 | H3: 5 | I3: Acumulados Periodo | J3: Recalculo | K3: Diferencia | M3: Mes | N3: Acumulado Dias | O3: Ingreso Acumulable del Mes | P3: ISR Retenido del Mes | Q3: ISR Retenido de Menos | R3: ISR Por Ajuste Mensual | S3: Subsidio Correspondiente | T3: Ajuste al Subsidio Causado | U3: Reintegro de ISR Retenido en Exceso | V3: ISR Neto | W3: Subsidio Correspondiente Neto
C4: Dias Periodo/Calendario | D4: 7 | E4: 7 | F4: =+E4 -> 7 | G4: 7 | H4: 7 | I4: =SUM(D4:H4) -> 35 | M4: 7 | N4: =+I4 -> 35 | O4: =+I9 -> 9758 | P4: =SUM(D21:H21) -> 0 | Q4: =+H22 -> 0 | R4: =+J24 -> 0 | S4: =+I18 -> 475 | T4: =+J25 -> 0 | U4: =+J26 -> 0 | V4: =+P4+Q4+R4 -> 0 | W4: =+S4-T4 -> 475
C5: Dias Pagados | D5: 7 | E5: 7 | F5: 7 | G5: 7 | H5: 7
C6: Salario Diario | D6: =+'M-01'!D6 -> 278.8 | E6: =+D6 -> 278.8 | F6: =+E6 -> 278.8 | G6: 278.8 | H6: 278.8
C7: Ingreso Ordinario | D7: =D5*D6 -> 1951.6 | E7: =E5*E6 -> 1951.6 | F7: =F5*F6 -> 1951.6 | G7: =G5*G6 -> 1951.6 | H7: =H5*H6 -> 1951.6 | I7: =SUM(D7:H7) -> 9758
A8: Varias | B8: Percepción | C8: Ingreso ExtraOrdinario
A9: Varias | B9: Percepción | C9: Ingreso Gravado Acumulable | D9: =+D8+D7 -> 1951.6 | E9: =+E8+E7 -> 1951.6 | F9: =+F8+F7 -> 1951.6 | G9: =+G8+G7 -> 1951.6 | H9: =+H8+H7 -> 1951.6 | I9: =SUM(D9:H9) -> 9758 | J9: =I9 -> 9758 | K9: =+I9 -> 9758
B10: Ocultos | C10: Oculto Acumulado para 8,091 | D10: =+D9 -> 1951.6 | E10: =+D10+E9 -> 3903.2 | F10: =+E10+F9 -> 5854.8 | G10: =+F10+G9 -> 7806.4 | H10: =+G10+H9 -> 9758
B11: Ocultos | C11: Dias a Tomar Para Elevar/DesElevar | D11: =+D4 -> 7 | E11: =+E4 -> 7 | F11: =+F4 -> 7 | G11: =+G4 -> 7 | H11: =+H4 -> 7
B12: Ocultos | C12: Base gravada elevada al mes | D12: =IF(D9=0,0,D9/D11*30.4) -> 8475.52 | E12: =IF(E9=0,0,E9/E11*30.4) -> 8475.52 | F12: =IF(F9=0,0,F9/F11*30.4) -> 8475.52 | G12: =IF(G9=0,0,G9/G11*30.4) -> 8475.52 | H12: =IF(H4=0,0,IF(H9=0,0,H9/H11*30.4)) -> 8475.52
B13: Ocultos | C13: ISR directo elevado al mes | D13: =((D12-VLOOKUP(D12,TablaMes,1))*VLOOKUP(D12,TablaMes,3))+VLOOKUP(D12,TablaMes,2) -> 605.038448 | E13: =((E12-VLOOKUP(E12,TablaMes,1))*VLOOKUP(E12,TablaMes,3))+VLOOKUP(E12,TablaMes,2) -> 605.038448 | F13: =((F12-VLOOKUP(F12,TablaMes,1))*VLOOKUP(F12,TablaMes,3))+VLOOKUP(F12,TablaMes,2) -> 605.038448 | G13: =((G12-VLOOKUP(G12,TablaMes,1))*VLOOKUP(G12,TablaMes,3))+VLOOKUP(G12,TablaMes,2) -> 605.038448 | H13: =((H12-VLOOKUP(H12,TablaMes,1))*VLOOKUP(H12,TablaMes,3))+VLOOKUP(H12,TablaMes,2) -> 605.038448
B14: Ocultos | C14: Subsidio semanal dato oculto relacionado | D14: =IF(D4=0,0,SubSem) -> 109.38 | E14: =IF(E4=0,0,SubSem) -> 109.38 | F14: =IF(F4=0,0,SubSem) -> 109.38 | G14: =IF(G4=0,0,SubSem) -> 109.38 | H14: =IF(H4=0,0,SubSem) -> 109.38
B15: Ocultos | C15: Oculto Para llegar a los 390 | D15: =+D14 -> 109.38 | E15: =IF(E4=0,0,MIN(+D15+E14,$H$36)) -> 218.76 | F15: =IF(F4=0,0,MIN(+E15+F14,$H$36)) -> 328.14 | G15: =IF(G3=B1, MAX(H36,IF(G4=0,0,MIN(F15+G14,$H$36))), IF(G4=0,0,MIN(+F15+G14,$H$36))) -> 437.52 | H15: =IF(H3=B1, MAX(H36,IF(H4=0,0,MIN(F15+H14,$H$36))), IF(H4=0,0,MIN(+F15+G14,$H$36))) -> 475
B16: Ocultos | C16: Limite para Subsidio Semanal | D16: =LimiteSemSub -> 2342.006579 | E16: =LimiteSemSub -> 2342.006579 | F16: =LimiteSemSub -> 2342.006579 | G16: =LimiteSemSub -> 2342.006579 | H16: =LimiteSemSub -> 2342.006579
C17: ISR de Tarifa | D17: =D13/30.4*D11 -> 139.3180637 | E17: =E13/30.4*E11 -> 139.3180637 | F17: =F13/30.4*F11 -> 139.3180637 | G17: =G13/30.4*G11 -> 139.3180637 | H17: =H13/30.4*H11 -> 139.3180637 | J17: =((J9-VLOOKUP(J9,TablaMes,1))*VLOOKUP(J9,TablaMes,3))+VLOOKUP(J9,TablaMes,2) -> 744.572272 | K17: Informativo
C18: Subsidio Correspondiente del Periodo | D18: =IF(OR(D10>LimiteMensSub,D9>D16),0,MAX(+D15,0)) -> 109.38 | E18: =IF(OR(E10>LimiteMensSub,E9>E16),0,MAX(+E15-D15,0)) -> 109.38 | F18: =IF(OR(F10>LimiteMensSub,F9>F16),0,MAX(+F15-E15,0)) -> 109.38 | G18: =IF(OR(G10>LimiteMensSub,G9>G16),0,MAX(+G15-F15,0)) -> 109.38 | H18: =IF(OR(H10>LimiteMensSub,H9>H16),0,MAX(+H15-G15,0)) -> 37.48 | I18: =SUM(D18:H18) -> 475 | J18: =IF(OR(I9>10171,I18>H39),0,I18) -> 475
C19: Subsidio definitivo | D19: =MIN(D18,D17) -> 109.38 | E19: =MIN(E18,E17) -> 109.38 | F19: =MIN(F18,F17) -> 109.38 | G19: =IF(G3=B1,IF(OR(G10>LimiteMensSub,G9>G16),0,MIN(MAX(G15-F20,0),G17)),MIN(G18,G17)) -> 109.38 | H19: =IF(OR(H10>LimiteMensSub,H9>H16),0,MIN(MAX(H15-G20,0),H17)) -> 37.48 | I19: =SUM(D19:H19) -> 475 | J19: =IF(OR(I9>10171,I19>H39),0,I19) -> 475
C20: Subsidio acumulado | D20: =D19 -> 109.38 | E20: =E19+D20 -> 218.76 | F20: =F19+E20 -> 328.14 | G20: =G19+F20 -> 437.52 | H20: =H19+G20 -> 475
A21: 002 | B21: Deducción | C21: ISR Retención Semanal | D21: =IF(SMGC*7>=D9,(MAX(D17-D18,0)*$H$35),MAX(D17-D18,0)) -> 0 | E21: =IF(SMGC*7>=E9,(MAX(E17-E18,0)*$H$35),MAX(E17-E18,0)) -> 0 | F21: =IF(SMGC*7>=F9,(MAX(F17-F18,0)*$H$35),MAX(F17-F18,0)) -> 0 | G21: =IF(SMGC*7>=G9,(MAX(G17-G18,0)*$H$35),MAX(G17-G18,0)) -> 0 | H21: =IF(SMGC*7>=H9,(MAX(H17-H18,0)*$H$35),MAX(H17-H18,0)) -> 0 | I21: =SUM(D21:H21)+H24 -> 0 | J21: =MAX(0,J17-J19) -> 269.572272 | K21: =J21-I21 -> 269.572272
A22: 002 | B22: Deducción | C22: ISR Retenido de Menos | H22: =IF(H9=0,0,IF(I9>SMGC*I4,MAX(K21,0)*H37,(MAX(K21,0)*H37)*H35)) -> 0
A23: 107 | B23: Deducción | C23: Ajuste al Subsidio Causado | G23: =IF($H$9=0,J23,0) -> 0 | H23: =IF($H$9<>0,J23,0) -> 0 | I23: Resta | J23: =IF(I19>J19,I19,0) -> 0
A24: 002 | B24: Deducción | C24: ISR por ajuste mensual | G24: =IF($H$9=0,J24,0) -> 0 | H24: =IF($H$9<>0,J24,0) -> 0 | I24: Resta | J24: =+J23 -> 0
A25: 007 | B25: Otros Pagos | C25: ISR ajustado por subsidio | G25: =IF($H$9=0,J25,0) -> 0 | H25: =IF($H$9<>0,J25,0) -> 0 | I25: Suma | J25: =+J24 -> 0
A26: 001 | B26: Otros Pagos | C26: Reintegro de ISR retenido en exceso | G26: =IF($H$9=0,J26,0) -> 0 | H26: =IF($H$9<>0,J26,0) -> 0 | I26: Suma | J26: =MAX(0,K21*-1)*H34 -> 0
C27: Neto | D27: =+D9-D21-D24 -> 1951.6 | E27: =+E9-E21-E24 -> 1951.6 | F27: =+F9-F21-F24 -> 1951.6 | G27: =+G9-G21-G24 -> 1951.6 | H27: =+H9-H21-H24-H22 -> 1951.6
H31: =IF(H9=0,0,IF(I9>SMGC*I4,MAX(K21,0)*H37,(MAX(K21,0)*H37)*H35)) -> 0
A33: Bandera | G33: Opcion | H33: Auxilar Opción
A34: 1) | B34: Activar "001 Otros Pagos, Reintegro de ISR Retenido en Exceso" | G34: =+Instrucciones!F15 -> No | H34: =IF(G34="Si",1,0) -> 0 | J34: =IF(G34="si",1,0) -> 0
A35: 2) | B35: Retener ISR aunque el trabajador gane el minimo | G35: No | H35: =IF(G35="Si",1,0) -> 0
A36: 3) | B36: Monto de Subisdio a pagar Máximo (475 o por Días del Periodo) | G36: =+Instrucciones!F17 -> 475 | H36: =IF(G36=475,475,MIN(SUM(D4:H4)*15.62,475)) -> 475
A37: 4) | B37: Retener ISR de menos en el ajuste mensual (periodos de 5 semanas) | G37: =+Instrucciones!F18 -> Si | H37: =IF(G37="Si",1,0) -> 1
A39: 5) | B39: En periodos de mas de 4 semanas, topar a (475 o 35 días de Subsidio) | G39: =+Instrucciones!F20 -> 475 | H39: =IF(G39=475,475,546.7) -> 475

Sheet M-08
A1: Número de periodos en el mes | B1: 4 | C1: Nota: Si vas a realizar el cálculo con 4 semanas, asegúrate de poner en cero los días pagados del periodo 5!!!!
D2: P E R I O D O S | N2: Dias | O2: Varios | P2: Deduccion 002 | Q2: Deduccion 002 | R2: Deduccion 002 | S2: Sin Concepto | T2: Deducción 107 | U2: Otro Pagos 001
A3: Cve SAT | B3: Tipo Concepto | C3: Concepto | D3: 1 | E3: 2 | F3: 3 | G3: 4 | H3: 5 | I3: Acumulados Periodo | J3: Recalculo | K3: Diferencia | M3: Mes | N3: Acumulado Dias | O3: Ingreso Acumulable del Mes | P3: ISR Retenido del Mes | Q3: ISR Retenido de Menos | R3: ISR Por Ajuste Mensual | S3: Subsidio Correspondiente | T3: Ajuste al Subsidio Causado | U3: Reintegro de ISR Retenido en Exceso | V3: ISR Neto | W3: Subsidio Correspondiente Neto
C4: Dias Periodo/Calendario | D4: 7 | E4: 7 | F4: =+E4 -> 7 | G4: 7 | I4: =SUM(D4:H4) -> 28 | M4: 8 | N4: =+I4 -> 28 | O4: =+I9 -> 7806.4 | P4: =SUM(D21:H21) -> 0 | Q4: =+H22 -> 0 | R4: =+J24 -> 0 | S4: =+I18 -> 475 | T4: =+J25 -> 0 | U4: =+J26 -> 0 | V4: =+P4+Q4+R4 -> 0 | W4: =+S4-T4 -> 475
C5: Dias Pagados | D5: 7 | E5: 7 | F5: 7 | G5: 7
C6: Salario Diario | D6: =+'M-01'!D6 -> 278.8 | E6: =+D6 -> 278.8 | F6: =+E6 -> 278.8 | G6: 278.8 | H6: 278.8
C7: Ingreso Ordinario | D7: =D5*D6 -> 1951.6 | E7: =E5*E6 -> 1951.6 | F7: =F5*F6 -> 1951.6 | G7: =G5*G6 -> 1951.6 | H7: =H5*H6 -> 0 | I7: =SUM(D7:H7) -> 7806.4
A8: Varias | B8: Percepción | C8: Ingreso ExtraOrdinario
A9: Varias | B9: Percepción | C9: Ingreso Gravado Acumulable | D9: =+D8+D7 -> 1951.6 | E9: =+E8+E7 -> 1951.6 | F9: =+F8+F7 -> 1951.6 | G9: =+G8+G7 -> 1951.6 | H9: =+H8+H7 -> 0 | I9: =SUM(D9:H9) -> 7806.4 | J9: =I9 -> 7806.4 | K9: =+I9 -> 7806.4
B10: Ocultos | C10: Oculto Acumulado para 8,091 | D10: =+D9 -> 1951.6 | E10: =+D10+E9 -> 3903.2 | F10: =+E10+F9 -> 5854.8 | G10: =+F10+G9 -> 7806.4 | H10: =+G10+H9 -> 7806.4
B11: Ocultos | C11: Dias a Tomar Para Elevar/DesElevar | D11: =+D4 -> 7 | E11: =+E4 -> 7 | F11: =+F4 -> 7 | G11: =+G4 -> 7 | H11: =+H4 -> 0
B12: Ocultos | C12: Base gravada elevada al mes | D12: =IF(D9=0,0,D9/D11*30.4) -> 8475.52 | E12: =IF(E9=0,0,E9/E11*30.4) -> 8475.52 | F12: =IF(F9=0,0,F9/F11*30.4) -> 8475.52 | G12: =IF(G9=0,0,G9/G11*30.4) -> 8475.52 | H12: =IF(H4=0,0,IF(H9=0,0,H9/H11*30.4)) -> 0
B13: Ocultos | C13: ISR directo elevado al mes | D13: =((D12-VLOOKUP(D12,TablaMes,1))*VLOOKUP(D12,TablaMes,3))+VLOOKUP(D12,TablaMes,2) -> 605.038448 | E13: =((E12-VLOOKUP(E12,TablaMes,1))*VLOOKUP(E12,TablaMes,3))+VLOOKUP(E12,TablaMes,2) -> 605.038448 | F13: =((F12-VLOOKUP(F12,TablaMes,1))*VLOOKUP(F12,TablaMes,3))+VLOOKUP(F12,TablaMes,2) -> 605.038448 | G13: =((G12-VLOOKUP(G12,TablaMes,1))*VLOOKUP(G12,TablaMes,3))+VLOOKUP(G12,TablaMes,2) -> 605.038448 | H13: =((H12-VLOOKUP(H12,TablaMes,1))*VLOOKUP(H12,TablaMes,3))+VLOOKUP(H12,TablaMes,2) -> 0
B14: Ocultos | C14: Subsidio semanal dato oculto relacionado | D14: =IF(D4=0,0,SubSem) -> 109.38 | E14: =IF(E4=0,0,SubSem) -> 109.38 | F14: =IF(F4=0,0,SubSem) -> 109.38 | G14: =IF(G4=0,0,SubSem) -> 109.38 | H14: =IF(H4=0,0,SubSem) -> 0
B15: Ocultos | C15: Oculto Para llegar a los 390 | D15: =+D14 -> 109.38 | E15: =IF(E4=0,0,MIN(+D15+E14,$H$36)) -> 218.76 | F15: =IF(F4=0,0,MIN(+E15+F14,$H$36)) -> 328.14 | G15: =IF(G3=B1, MAX(H36,IF(G4=0,0,MIN(F15+G14,$H$36))), IF(G4=0,0,MIN(+F15+G14,$H$36))) -> 475 | H15: =IF(H3=B1, MAX(H36,IF(H4=0,0,MIN(F15+H14,$H$36))), IF(H4=0,0,MIN(+F15+G14,$H$36))) -> 0
B16: Ocultos | C16: Limite para Subsidio Semanal | D16: =LimiteSemSub -> 2342.006579 | E16: =LimiteSemSub -> 2342.006579 | F16: =LimiteSemSub -> 2342.006579 | G16: =LimiteSemSub -> 2342.006579 | H16: =LimiteSemSub -> 2342.006579
C17: ISR de Tarifa | D17: =D13/30.4*D11 -> 139.3180637 | E17: =E13/30.4*E11 -> 139.3180637 | F17: =F13/30.4*F11 -> 139.3180637 | G17: =G13/30.4*G11 -> 139.3180637 | H17: =H13/30.4*H11 -> 0 | J17: =((J9-VLOOKUP(J9,TablaMes,1))*VLOOKUP(J9,TablaMes,3))+VLOOKUP(J9,TablaMes,2) -> 532.238192 | K17: Informativo
C18: Subsidio Correspondiente del Periodo | D18: =IF(OR(D10>LimiteMensSub,D9>D16),0,MAX(+D15,0)) -> 109.38 | E18: =IF(OR(E10>LimiteMensSub,E9>E16),0,MAX(+E15-D15,0)) -> 109.38 | F18: =IF(OR(F10>LimiteMensSub,F9>F16),0,MAX(+F15-E15,0)) -> 109.38 | G18: =IF(OR(G10>LimiteMensSub,G9>G16),0,MAX(+G15-F15,0)) -> 146.86 | H18: =IF(OR(H10>LimiteMensSub,H9>H16),0,MAX(+H15-G15,0)) -> 0 | I18: =SUM(D18:H18) -> 475 | J18: =IF(OR(I9>10171,I18>H39),0,I18) -> 475
C19: Subsidio definitivo | D19: =MIN(D18,D17) -> 109.38 | E19: =MIN(E18,E17) -> 109.38 | F19: =MIN(F18,F17) -> 109.38 | G19: =IF(G3=B1,IF(OR(G10>LimiteMensSub,G9>G16),0,MIN(MAX(G15-F20,0),G17)),MIN(G18,G17)) -> 139.3180637 | H19: =IF(OR(H10>LimiteMensSub,H9>H16),0,MIN(MAX(H15-G20,0),H17)) -> 0 | I19: =SUM(D19:H19) -> 467.4580637 | J19: =IF(OR(I9>10171,I19>H39),0,I19) -> 467.4580637
C20: Subsidio acumulado | D20: =D19 -> 109.38 | E20: =E19+D20 -> 218.76 | F20: =F19+E20 -> 328.14 | G20: =G19+F20 -> 467.4580637 | H20: =H19+G20 -> 467.4580637
A21: 002 | B21: Deducción | C21: ISR Retención Semanal | D21: =IF(SMGC*7>=D9,(MAX(D17-D18,0)*$H$35),MAX(D17-D18,0)) -> 0 | E21: =IF(SMGC*7>=E9,(MAX(E17-E18,0)*$H$35),MAX(E17-E18,0)) -> 0 | F21: =IF(SMGC*7>=F9,(MAX(F17-F18,0)*$H$35),MAX(F17-F18,0)) -> 0 | G21: =IF(SMGC*7>=G9,(MAX(G17-G18,0)*$H$35),MAX(G17-G18,0)) -> 0 | H21: =IF(SMGC*7>=H9,(MAX(H17-H18,0)*$H$35),MAX(H17-H18,0)) -> 0 | I21: =SUM(D21:H21)+H24 -> 0 | J21: =MAX(0,J17-J19) -> 64.78012832 | K21: =J21-I21 -> 64.78012832
A22: 002 | B22: Deducción | C22: ISR Retenido de Menos | H22: =IF(H9=0,0,IF(I9>SMGC*I4,MAX(K21,0)*H37,(MAX(K21,0)*H37)*H35)) -> 0
A23: 107 | B23: Deducción | C23: Ajuste al Subsidio Causado | G23: =IF($H$9=0,J23,0) -> 0 | H23: =IF($H$9<>0,J23,0) -> 0 | I23: Resta | J23: =IF(I19>J19,I19,0) -> 0
A24: 002 | B24: Deducción | C24: ISR por ajuste mensual | G24: =IF($H$9=0,J24,0) -> 0 | H24: =IF($H$9<>0,J24,0) -> 0 | I24: Resta | J24: =+J23 -> 0
A25: 007 | B25: Otros Pagos | C25: ISR ajustado por subsidio | G25: =IF($H$9=0,J25,0) -> 0 | H25: =IF($H$9<>0,J25,0) -> 0 | I25: Suma | J25: =+J24 -> 0
A26: 001 | B26: Otros Pagos | C26: Reintegro de ISR retenido en exceso | G26: =IF($H$9=0,J26,0) -> 0 | H26: =IF($H$9<>0,J26,0) -> 0 | I26: Suma | J26: =MAX(0,K21*-1)*H34 -> 0
C27: Neto | D27: =+D9-D21-D24 -> 1951.6 | E27: =+E9-E21-E24 -> 1951.6 | F27: =+F9-F21-F24 -> 1951.6 | G27: =+G9-G21-G24 -> 1951.6 | H27: =+H9-H21-H24-H22 -> 0
H31: =IF(H9=0,0,IF(I9>SMGC*I4,MAX(K21,0)*H37,(MAX(K21,0)*H37)*H35)) -> 0
A33: Bandera | G33: Opcion | H33: Auxilar Opción
A34: 1) | B34: Activar "001 Otros Pagos, Reintegro de ISR Retenido en Exceso" | G34: =+Instrucciones!F15 -> No | H34: =IF(G34="Si",1,0) -> 0 | J34: =IF(G34="si",1,0) -> 0
A35: 2) | B35: Retener ISR aunque el trabajador gane el minimo | G35: No | H35: =IF(G35="Si",1,0) -> 0
A36: 3) | B36: Monto de Subisdio a pagar Máximo (475 o por Días del Periodo) | G36: =+Instrucciones!F17 -> 475 | H36: =IF(G36=475,475,MIN(SUM(D4:H4)*15.62,475)) -> 475
A37: 4) | B37: Retener ISR de menos en el ajuste mensual (periodos de 5 semanas) | G37: =+Instrucciones!F18 -> Si | H37: =IF(G37="Si",1,0) -> 1
A39: 5) | B39: En periodos de mas de 4 semanas, topar a (475 o 35 días de Subsidio) | G39: =+Instrucciones!F20 -> 475 | H39: =IF(G39=475,475,546.7) -> 475

Sheet M-09
A1: Número de periodos en el mes | B1: 5 | C1: Nota: Si vas a realizar el cálculo con 4 semanas, asegúrate de poner en cero los días pagados del periodo 5!!!!
D2: P E R I O D O S | N2: Dias | O2: Varios | P2: Deduccion 002 | Q2: Deduccion 002 | R2: Deduccion 002 | S2: Sin Concepto | T2: Deducción 107 | U2: Otro Pagos 001
A3: Cve SAT | B3: Tipo Concepto | C3: Concepto | D3: 1 | E3: 2 | F3: 3 | G3: 4 | H3: 5 | I3: Acumulados Periodo | J3: Recalculo | K3: Diferencia | M3: Mes | N3: Acumulado Dias | O3: Ingreso Acumulable del Mes | P3: ISR Retenido del Mes | Q3: ISR Retenido de Menos | R3: ISR Por Ajuste Mensual | S3: Subsidio Correspondiente | T3: Ajuste al Subsidio Causado | U3: Reintegro de ISR Retenido en Exceso | V3: ISR Neto | W3: Subsidio Correspondiente Neto
C4: Dias Periodo/Calendario | D4: 7 | E4: 7 | F4: =+E4 -> 7 | G4: 7 | I4: =SUM(D4:H4) -> 28 | M4: 9 | N4: =+I4 -> 28 | O4: =+I9 -> 7806.4 | P4: =SUM(D21:H21) -> 0 | Q4: =+H22 -> 0 | R4: =+J24 -> 0 | S4: =+I18 -> 475 | T4: =+J25 -> 0 | U4: =+J26 -> 0 | V4: =+P4+Q4+R4 -> 0 | W4: =+S4-T4 -> 475
C5: Dias Pagados | D5: 7 | E5: 7 | F5: 7 | G5: 7
C6: Salario Diario | D6: =+'M-01'!D6 -> 278.8 | E6: =+D6 -> 278.8 | F6: =+E6 -> 278.8 | G6: 278.8 | H6: 278.8
C7: Ingreso Ordinario | D7: =D5*D6 -> 1951.6 | E7: =E5*E6 -> 1951.6 | F7: =F5*F6 -> 1951.6 | G7: =G5*G6 -> 1951.6 | H7: =H5*H6 -> 0 | I7: =SUM(D7:H7) -> 7806.4
A8: Varias | B8: Percepción | C8: Ingreso ExtraOrdinario
A9: Varias | B9: Percepción | C9: Ingreso Gravado Acumulable | D9: =+D8+D7 -> 1951.6 | E9: =+E8+E7 -> 1951.6 | F9: =+F8+F7 -> 1951.6 | G9: =+G8+G7 -> 1951.6 | H9: =+H8+H7 -> 0 | I9: =SUM(D9:H9) -> 7806.4 | J9: =I9 -> 7806.4 | K9: =+I9 -> 7806.4
B10: Ocultos | C10: Oculto Acumulado para 8,091 | D10: =+D9 -> 1951.6 | E10: =+D10+E9 -> 3903.2 | F10: =+E10+F9 -> 5854.8 | G10: =+F10+G9 -> 7806.4 | H10: =+G10+H9 -> 7806.4
B11: Ocultos | C11: Dias a Tomar Para Elevar/DesElevar | D11: =+D4 -> 7 | E11: =+E4 -> 7 | F11: =+F4 -> 7 | G11: =+G4 -> 7 | H11: =+H4 -> 0
B12: Ocultos | C12: Base gravada elevada al mes | D12: =IF(D9=0,0,D9/D11*30.4) -> 8475.52 | E12: =IF(E9=0,0,E9/E11*30.4) -> 8475.52 | F12: =IF(F9=0,0,F9/F11*30.4) -> 8475.52 | G12: =IF(G9=0,0,G9/G11*30.4) -> 8475.52 | H12: =IF(H4=0,0,IF(H9=0,0,H9/H11*30.4)) -> 0
B13: Ocultos | C13: ISR directo elevado al mes | D13: =((D12-VLOOKUP(D12,TablaMes,1))*VLOOKUP(D12,TablaMes,3))+VLOOKUP(D12,TablaMes,2) -> 605.038448 | E13: =((E12-VLOOKUP(E12,TablaMes,1))*VLOOKUP(E12,TablaMes,3))+VLOOKUP(E12,TablaMes,2) -> 605.038448 | F13: =((F12-VLOOKUP(F12,TablaMes,1))*VLOOKUP(F12,TablaMes,3))+VLOOKUP(F12,TablaMes,2) -> 605.038448 | G13: =((G12-VLOOKUP(G12,TablaMes,1))*VLOOKUP(G12,TablaMes,3))+VLOOKUP(G12,TablaMes,2) -> 605.038448 | H13: =((H12-VLOOKUP(H12,TablaMes,1))*VLOOKUP(H12,TablaMes,3))+VLOOKUP(H12,TablaMes,2) -> 0
B14: Ocultos | C14: Subsidio semanal dato oculto relacionado | D14: =IF(D4=0,0,SubSem) -> 109.38 | E14: =IF(E4=0,0,SubSem) -> 109.38 | F14: =IF(F4=0,0,SubSem) -> 109.38 | G14: =IF(G4=0,0,SubSem) -> 109.38 | H14: =IF(H4=0,0,SubSem) -> 0
B15: Ocultos | C15: Oculto Para llegar a los 390 | D15: =+D14 -> 109.38 | E15: =IF(E4=0,0,MIN(+D15+E14,$H$36)) -> 218.76 | F15: =IF(F4=0,0,MIN(+E15+F14,$H$36)) -> 328.14 | G15: =IF(G3=B1, MAX(H36,IF(G4=0,0,MIN(F15+G14,$H$36))), IF(G4=0,0,MIN(+F15+G14,$H$36))) -> 437.52 | H15: =IF(H3=B1, MAX(H36,IF(H4=0,0,MIN(F15+H14,$H$36))), IF(H4=0,0,MIN(+F15+G14,$H$36))) -> 475
B16: Ocultos | C16: Limite para Subsidio Semanal | D16: =LimiteSemSub -> 2342.006579 | E16: =LimiteSemSub -> 2342.006579 | F16: =LimiteSemSub -> 2342.006579 | G16: =LimiteSemSub -> 2342.006579 | H16: =LimiteSemSub -> 2342.006579
C17: ISR de Tarifa | D17: =D13/30.4*D11 -> 139.3180637 | E17: =E13/30.4*E11 -> 139.3180637 | F17: =F13/30.4*F11 -> 139.3180637 | G17: =G13/30.4*G11 -> 139.3180637 | H17: =H13/30.4*H11 -> 0 | J17: =((J9-VLOOKUP(J9,TablaMes,1))*VLOOKUP(J9,TablaMes,3))+VLOOKUP(J9,TablaMes,2) -> 532.238192 | K17: Informativo
C18: Subsidio Correspondiente del Periodo | D18: =IF(OR(D10>LimiteMensSub,D9>D16),0,MAX(+D15,0)) -> 109.38 | E18: =IF(OR(E10>LimiteMensSub,E9>E16),0,MAX(+E15-D15,0)) -> 109.38 | F18: =IF(OR(F10>LimiteMensSub,F9>F16),0,MAX(+F15-E15,0)) -> 109.38 | G18: =IF(OR(G10>LimiteMensSub,G9>G16),0,MAX(+G15-F15,0)) -> 109.38 | H18: =IF(OR(H10>LimiteMensSub,H9>H16),0,MAX(+H15-G15,0)) -> 37.48 | I18: =SUM(D18:H18) -> 475 | J18: =IF(OR(I9>10171,I18>H39),0,I18) -> 475
C19: Subsidio definitivo | D19: =MIN(D18,D17) -> 109.38 | E19: =MIN(E18,E17) -> 109.38 | F19: =MIN(F18,F17) -> 109.38 | G19: =IF(G3=B1,IF(OR(G10>LimiteMensSub,G9>G16),0,MIN(MAX(G15-F20,0),G17)),MIN(G18,G17)) -> 109.38 | H19: =IF(OR(H10>LimiteMensSub,H9>H16),0,MIN(MAX(H15-G20,0),H17)) -> 0 | I19: =SUM(D19:H19) -> 437.52 | J19: =IF(OR(I9>10171,I19>H39),0,I19) -> 437.52
C20: Subsidio acumulado | D20: =D19 -> 109.38 | E20: =E19+D20 -> 218.76 | F20: =F19+E20 -> 328.14 | G20: =G19+F20 -> 437.52 | H20: =H19+G20 -> 437.52
A21: 002 | B21: Deducción | C21: ISR Retención Semanal | D21: =IF(SMGC*7>=D9,(MAX(D17-D18,0)*$H$35),MAX(D17-D18,0)) -> 0 | E21: =IF(SMGC*7>=E9,(MAX(E17-E18,0)*$H$35),MAX(E17-E18,0)) -> 0 | F21: =IF(SMGC*7>=F9,(MAX(F17-F18,0)*$H$35),MAX(F17-F18,0)) -> 0 | G21: =IF(SMGC*7>=G9,(MAX(G17-G18,0)*$H$35),MAX(G17-G18,0)) -> 0 | H21: =IF(SMGC*7>=H9,(MAX(H17-H18,0)*$H$35),MAX(H17-H18,0)) -> 0 | I21: =SUM(D21:H21)+H24 -> 0 | J21: =MAX(0,J17-J19) -> 94.718192 | K21: =J21-I21 -> 94.718192
A22: 002 | B22: Deducción | C22: ISR Retenido de Menos | H22: =IF(H9=0,0,IF(I9>SMGC*I4,MAX(K21,0)*H37,(MAX(K21,0)*H37)*H35)) -> 0
A23: 107 | B23: Deducción | C23: Ajuste al Subsidio Causado | G23: =IF($H$9=0,J23,0) -> 0 | H23: =IF($H$9<>0,J23,0) -> 0 | I23: Resta | J23: =IF(I19>J19,I19,0) -> 0
A24: 002 | B24: Deducción | C24: ISR por ajuste mensual | G24: =IF($H$9=0,J24,0) -> 0 | H24: =IF($H$9<>0,J24,0) -> 0 | I24: Resta | J24: =+J23 -> 0
A25: 007 | B25: Otros Pagos | C25: ISR ajustado por subsidio | G25: =IF($H$9=0,J25,0) -> 0 | H25: =IF($H$9<>0,J25,0) -> 0 | I25: Suma | J25: =+J24 -> 0
A26: 001 | B26: Otros Pagos | C26: Reintegro de ISR retenido en exceso | G26: =IF($H$9=0,J26,0) -> 0 | H26: =IF($H$9<>0,J26,0) -> 0 | I26: Suma | J26: =MAX(0,K21*-1)*H34 -> 0
C27: Neto | D27: =+D9-D21-D24 -> 1951.6 | E27: =+E9-E21-E24 -> 1951.6 | F27: =+F9-F21-F24 -> 1951.6 | G27: =+G9-G21-G24 -> 1951.6 | H27: =+H9-H21-H24-H22 -> 0
H31: =IF(H9=0,0,IF(I9>SMGC*I4,MAX(K21,0)*H37,(MAX(K21,0)*H37)*H35)) -> 0
A33: Bandera | G33: Opcion | H33: Auxilar Opción
A34: 1) | B34: Activar "001 Otros Pagos, Reintegro de ISR Retenido en Exceso" | G34: =+Instrucciones!F15 -> No | H34: =IF(G34="Si",1,0) -> 0 | J34: =IF(G34="si",1,0) -> 0
A35: 2) | B35: Retener ISR aunque el trabajador gane el minimo | G35: No | H35: =IF(G35="Si",1,0) -> 0
A36: 3) | B36: Monto de Subisdio a pagar Máximo (475 o por Días del Periodo) | G36: =+Instrucciones!F17 -> 475 | H36: =IF(G36=475,475,MIN(SUM(D4:H4)*15.62,475)) -> 475
A37: 4) | B37: Retener ISR de menos en el ajuste mensual (periodos de 5 semanas) | G37: =+Instrucciones!F18 -> Si | H37: =IF(G37="Si",1,0) -> 1
A39: 5) | B39: En periodos de mas de 4 semanas, topar a (475 o 35 días de Subsidio) | G39: =+Instrucciones!F20 -> 475 | H39: =IF(G39=475,475,546.7) -> 475

Sheet M-10
A1: Número de periodos en el mes | B1: 5 | C1: Nota: Si vas a realizar el cálculo con 4 semanas, asegúrate de poner en cero los días pagados del periodo 5!!!!
D2: P E R I O D O S | N2: Dias | O2: Varios | P2: Deduccion 002 | Q2: Deduccion 002 | R2: Deduccion 002 | S2: Sin Concepto | T2: Deducción 107 | U2: Otro Pagos 001
A3: Cve SAT | B3: Tipo Concepto | C3: Concepto | D3: 1 | E3: 2 | F3: 3 | G3: 4 | H3: 5 | I3: Acumulados Periodo | J3: Recalculo | K3: Diferencia | M3: Mes | N3: Acumulado Dias | O3: Ingreso Acumulable del Mes | P3: ISR Retenido del Mes | Q3: ISR Retenido de Menos | R3: ISR Por Ajuste Mensual | S3: Subsidio Correspondiente | T3: Ajuste al Subsidio Causado | U3: Reintegro de ISR Retenido en Exceso | V3: ISR Neto | W3: Subsidio Correspondiente Neto
C4: Dias Periodo/Calendario | D4: 7 | E4: 7 | F4: =+E4 -> 7 | G4: 7 | H4: 7 | I4: =SUM(D4:H4) -> 35 | M4: 10 | N4: =+I4 -> 35 | O4: =+I9 -> 9758 | P4: =SUM(D21:H21) -> 0 | Q4: =+H22 -> 0 | R4: =+J24 -> 0 | S4: =+I18 -> 475 | T4: =+J25 -> 0 | U4: =+J26 -> 0 | V4: =+P4+Q4+R4 -> 0 | W4: =+S4-T4 -> 475
C5: Dias Pagados | D5: 7 | E5: 7 | F5: 7 | G5: 7 | H5: 7
C6: Salario Diario | D6: =+'M-01'!D6 -> 278.8 | E6: =+D6 -> 278.8 | F6: =+E6 -> 278.8 | G6: 278.8 | H6: 278.8
C7: Ingreso Ordinario | D7: =D5*D6 -> 1951.6 | E7: =E5*E6 -> 1951.6 | F7: =F5*F6 -> 1951.6 | G7: =G5*G6 -> 1951.6 | H7: =H5*H6 -> 1951.6 | I7: =SUM(D7:H7) -> 9758
A8: Varias | B8: Percepción | C8: Ingreso ExtraOrdinario
A9: Varias | B9: Percepción | C9: Ingreso Gravado Acumulable | D9: =+D8+D7 -> 1951.6 | E9: =+E8+E7 -> 1951.6 | F9: =+F8+F7 -> 1951.6 | G9: =+G8+G7 -> 1951.6 | H9: =+H8+H7 -> 1951.6 | I9: =SUM(D9:H9) -> 9758 | J9: =I9 -> 9758 | K9: =+I9 -> 9758
B10: Ocultos | C10: Oculto Acumulado para 8,091 | D10: =+D9 -> 1951.6 | E10: =+D10+E9 -> 3903.2 | F10: =+E10+F9 -> 5854.8 | G10: =+F10+G9 -> 7806.4 | H10: =+G10+H9 -> 9758
B11: Ocultos | C11: Dias a Tomar Para Elevar/DesElevar | D11: =+D4 -> 7 | E11: =+E4 -> 7 | F11: =+F4 -> 7 | G11: =+G4 -> 7 | H11: =+H4 -> 7
B12: Ocultos | C12: Base gravada elevada al mes | D12: =IF(D9=0,0,D9/D11*30.4) -> 8475.52 | E12: =IF(E9=0,0,E9/E11*30.4) -> 8475.52 | F12: =IF(F9=0,0,F9/F11*30.4) -> 8475.52 | G12: =IF(G9=0,0,G9/G11*30.4) -> 8475.52 | H12: =IF(H4=0,0,IF(H9=0,0,H9/H11*30.4)) -> 8475.52
B13: Ocultos | C13: ISR directo elevado al mes | D13: =((D12-VLOOKUP(D12,TablaMes,1))*VLOOKUP(D12,TablaMes,3))+VLOOKUP(D12,TablaMes,2) -> 605.038448 | E13: =((E12-VLOOKUP(E12,TablaMes,1))*VLOOKUP(E12,TablaMes,3))+VLOOKUP(E12,TablaMes,2) -> 605.038448 | F13: =((F12-VLOOKUP(F12,TablaMes,1))*VLOOKUP(F12,TablaMes,3))+VLOOKUP(F12,TablaMes,2) -> 605.038448 | G13: =((G12-VLOOKUP(G12,TablaMes,1))*VLOOKUP(G12,TablaMes,3))+VLOOKUP(G12,TablaMes,2) -> 605.038448 | H13: =((H12-VLOOKUP(H12,TablaMes,1))*VLOOKUP(H12,TablaMes,3))+VLOOKUP(H12,TablaMes,2) -> 605.038448
B14: Ocultos | C14: Subsidio semanal dato oculto relacionado | D14: =IF(D4=0,0,SubSem) -> 109.38 | E14: =IF(E4=0,0,SubSem) -> 109.38 | F14: =IF(F4=0,0,SubSem) -> 109.38 | G14: =IF(G4=0,0,SubSem) -> 109.38 | H14: =IF(H4=0,0,SubSem) -> 109.38
B15: Ocultos | C15: Oculto Para llegar a los 390 | D15: =+D14 -> 109.38 | E15: =IF(E4=0,0,MIN(+D15+E14,$H$36)) -> 218.76 | F15: =IF(F4=0,0,MIN(+E15+F14,$H$36)) -> 328.14 | G15: =IF(G3=B1, MAX(H36,IF(G4=0,0,MIN(F15+G14,$H$36))), IF(G4=0,0,MIN(+F15+G14,$H$36))) -> 437.52 | H15: =IF(H3=B1, MAX(H36,IF(H4=0,0,MIN(F15+H14,$H$36))), IF(H4=0,0,MIN(+F15+G14,$H$36))) -> 475
B16: Ocultos | C16: Limite para Subsidio Semanal | D16: =LimiteSemSub -> 2342.006579 | E16: =LimiteSemSub -> 2342.006579 | F16: =LimiteSemSub -> 2342.006579 | G16: =LimiteSemSub -> 2342.006579 | H16: =LimiteSemSub -> 2342.006579
C17: ISR de Tarifa | D17: =D13/30.4*D11 -> 139.3180637 | E17: =E13/30.4*E11 -> 139.3180637 | F17: =F13/30.4*F11 -> 139.3180637 | G17: =G13/30.4*G11 -> 139.3180637 | H17: =H13/30.4*H11 -> 139.3180637 | J17: =((J9-VLOOKUP(J9,TablaMes,1))*VLOOKUP(J9,TablaMes,3))+VLOOKUP(J9,TablaMes,2) -> 744.572272 | K17: Informativo
C18: Subsidio Correspondiente del Periodo | D18: =IF(OR(D10>LimiteMensSub,D9>D16),0,MAX(+D15,0)) -> 109.38 | E18: =IF(OR(E10>LimiteMensSub,E9>E16),0,MAX(+E15-D15,0)) -> 109.38 | F18: =IF(OR(F10>LimiteMensSub,F9>F16),0,MAX(+F15-E15,0)) -> 109.38 | G18: =IF(OR(G10>LimiteMensSub,G9>G16),0,MAX(+G15-F15,0)) -> 109.38 | H18: =IF(OR(H10>LimiteMensSub,H9>H16),0,MAX(+H15-G15,0)) -> 37.48 | I18: =SUM(D18:H18) -> 475 | J18: =IF(OR(I9>10171,I18>H39),0,I18) -> 475
C19: Subsidio definitivo | D19: =MIN(D18,D17) -> 109.38 | E19: =MIN(E18,E17) -> 109.38 | F19: =MIN(F18,F17) -> 109.38 | G19: =IF(G3=B1,IF(OR(G10>LimiteMensSub,G9>G16),0,MIN(MAX(G15-F20,0),G17)),MIN(G18,G17)) -> 109.38 | H19: =IF(OR(H10>LimiteMensSub,H9>H16),0,MIN(MAX(H15-G20,0),H17)) -> 37.48 | I19: =SUM(D19:H19) -> 475 | J19: =IF(OR(I9>10171,I19>H39),0,I19) -> 475
C20: Subsidio acumulado | D20: =D19 -> 109.38 | E20: =E19+D20 -> 218.76 | F20: =F19+E20 -> 328.14 | G20: =G19+F20 -> 437.52 | H20: =H19+G20 -> 475
A21: 002 | B21: Deducción | C21: ISR Retención Semanal | D21: =IF(SMGC*7>=D9,(MAX(D17-D18,0)*$H$35),MAX(D17-D18,0)) -> 0 | E21: =IF(SMGC*7>=E9,(MAX(E17-E18,0)*$H$35),MAX(E17-E18,0)) -> 0 | F21: =IF(SMGC*7>=F9,(MAX(F17-F18,0)*$H$35),MAX(F17-F18,0)) -> 0 | G21: =IF(SMGC*7>=G9,(MAX(G17-G18,0)*$H$35),MAX(G17-G18,0)) -> 0 | H21: =IF(SMGC*7>=H9,(MAX(H17-H18,0)*$H$35),MAX(H17-H18,0)) -> 0 | I21: =SUM(D21:H21)+H24 -> 0 | J21: =MAX(0,J17-J19) -> 269.572272 | K21: =J21-I21 -> 269.572272
A22: 002 | B22: Deducción | C22: ISR Retenido de Menos | H22: =IF(H9=0,0,IF(I9>SMGC*I4,MAX(K21,0)*H37,(MAX(K21,0)*H37)*H35)) -> 0
A23: 107 | B23: Deducción | C23: Ajuste al Subsidio Causado | G23: =IF($H$9=0,J23,0) -> 0 | H23: =IF($H$9<>0,J23,0) -> 0 | I23: Resta | J23: =IF(I19>J19,I19,0) -> 0
A24: 002 | B24: Deducción | C24: ISR por ajuste mensual | G24: =IF($H$9=0,J24,0) -> 0 | H24: =IF($H$9<>0,J24,0) -> 0 | I24: Resta | J24: =+J23 -> 0
A25: 007 | B25: Otros Pagos | C25: ISR ajustado por subsidio | G25: =IF($H$9=0,J25,0) -> 0 | H25: =IF($H$9<>0,J25,0) -> 0 | I25: Suma | J25: =+J24 -> 0
A26: 001 | B26: Otros Pagos | C26: Reintegro de ISR retenido en exceso | G26: =IF($H$9=0,J26,0) -> 0 | H26: =IF($H$9<>0,J26,0) -> 0 | I26: Suma | J26: =MAX(0,K21*-1)*H34 -> 0
C27: Neto | D27: =+D9-D21-D24 -> 1951.6 | E27: =+E9-E21-E24 -> 1951.6 | F27: =+F9-F21-F24 -> 1951.6 | G27: =+G9-G21-G24 -> 1951.6 | H27: =+H9-H21-H24-H22 -> 1951.6
H31: =IF(H9=0,0,IF(I9>SMGC*I4,MAX(K21,0)*H37,(MAX(K21,0)*H37)*H35)) -> 0
A33: Bandera | G33: Opcion | H33: Auxilar Opción
A34: 1) | B34: Activar "001 Otros Pagos, Reintegro de ISR Retenido en Exceso" | G34: =+Instrucciones!F15 -> No | H34: =IF(G34="Si",1,0) -> 0 | J34: =IF(G34="si",1,0) -> 0
A35: 2) | B35: Retener ISR aunque el trabajador gane el minimo | G35: No | H35: =IF(G35="Si",1,0) -> 0
A36: 3) | B36: Monto de Subisdio a pagar Máximo (475 o por Días del Periodo) | G36: =+Instrucciones!F17 -> 475 | H36: =IF(G36=475,475,MIN(SUM(D4:H4)*15.62,475)) -> 475
A37: 4) | B37: Retener ISR de menos en el ajuste mensual (periodos de 5 semanas) | G37: =+Instrucciones!F18 -> Si | H37: =IF(G37="Si",1,0) -> 1
A39: 5) | B39: En periodos de mas de 4 semanas, topar a (475 o 35 días de Subsidio) | G39: =+Instrucciones!F20 -> 475 | H39: =IF(G39=475,475,546.7) -> 475

Sheet M-11
A1: Número de periodos en el mes | B1: 5 | C1: Nota: Si vas a realizar el cálculo con 4 semanas, asegúrate de poner en cero los días pagados del periodo 5!!!!
D2: P E R I O D O S | N2: Dias | O2: Varios | P2: Deduccion 002 | Q2: Deduccion 002 | R2: Deduccion 002 | S2: Sin Concepto | T2: Deducción 107 | U2: Otro Pagos 001
A3: Cve SAT | B3: Tipo Concepto | C3: Concepto | D3: 1 | E3: 2 | F3: 3 | G3: 4 | H3: 5 | I3: Acumulados Periodo | J3: Recalculo | K3: Diferencia | M3: Mes | N3: Acumulado Dias | O3: Ingreso Acumulable del Mes | P3: ISR Retenido del Mes | Q3: ISR Retenido de Menos | R3: ISR Por Ajuste Mensual | S3: Subsidio Correspondiente | T3: Ajuste al Subsidio Causado | U3: Reintegro de ISR Retenido en Exceso | V3: ISR Neto | W3: Subsidio Correspondiente Neto
C4: Dias Periodo/Calendario | D4: 7 | E4: 7 | F4: =+E4 -> 7 | G4: 7 | I4: =SUM(D4:H4) -> 28 | M4: 11 | N4: =+I4 -> 28 | O4: =+I9 -> 7806.4 | P4: =SUM(D21:H21) -> 0 | Q4: =+H22 -> 0 | R4: =+J24 -> 0 | S4: =+I18 -> 475 | T4: =+J25 -> 0 | U4: =+J26 -> 0 | V4: =+P4+Q4+R4 -> 0 | W4: =+S4-T4 -> 475
C5: Dias Pagados | D5: 7 | E5: 7 | F5: 7 | G5: 7
C6: Salario Diario | D6: =+'M-01'!D6 -> 278.8 | E6: =+D6 -> 278.8 | F6: =+E6 -> 278.8 | G6: 278.8 | H6: 278.8
C7: Ingreso Ordinario | D7: =D5*D6 -> 1951.6 | E7: =E5*E6 -> 1951.6 | F7: =F5*F6 -> 1951.6 | G7: =G5*G6 -> 1951.6 | H7: =H5*H6 -> 0 | I7: =SUM(D7:H7) -> 7806.4
A8: Varias | B8: Percepción | C8: Ingreso ExtraOrdinario
A9: Varias | B9: Percepción | C9: Ingreso Gravado Acumulable | D9: =+D8+D7 -> 1951.6 | E9: =+E8+E7 -> 1951.6 | F9: =+F8+F7 -> 1951.6 | G9: =+G8+G7 -> 1951.6 | H9: =+H8+H7 -> 0 | I9: =SUM(D9:H9) -> 7806.4 | J9: =I9 -> 7806.4 | K9: =+I9 -> 7806.4
B10: Ocultos | C10: Oculto Acumulado para 8,091 | D10: =+D9 -> 1951.6 | E10: =+D10+E9 -> 3903.2 | F10: =+E10+F9 -> 5854.8 | G10: =+F10+G9 -> 7806.4 | H10: =+G10+H9 -> 7806.4
B11: Ocultos | C11: Dias a Tomar Para Elevar/DesElevar | D11: =+D4 -> 7 | E11: =+E4 -> 7 | F11: =+F4 -> 7 | G11: =+G4 -> 7 | H11: =+H4 -> 0
B12: Ocultos | C12: Base gravada elevada al mes | D12: =IF(D9=0,0,D9/D11*30.4) -> 8475.52 | E12: =IF(E9=0,0,E9/E11*30.4) -> 8475.52 | F12: =IF(F9=0,0,F9/F11*30.4) -> 8475.52 | G12: =IF(G9=0,0,G9/G11*30.4) -> 8475.52 | H12: =IF(H4=0,0,IF(H9=0,0,H9/H11*30.4)) -> 0
B13: Ocultos | C13: ISR directo elevado al mes | D13: =((D12-VLOOKUP(D12,TablaMes,1))*VLOOKUP(D12,TablaMes,3))+VLOOKUP(D12,TablaMes,2) -> 605.038448 | E13: =((E12-VLOOKUP(E12,TablaMes,1))*VLOOKUP(E12,TablaMes,3))+VLOOKUP(E12,TablaMes,2) -> 605.038448 | F13: =((F12-VLOOKUP(F12,TablaMes,1))*VLOOKUP(F12,TablaMes,3))+VLOOKUP(F12,TablaMes,2) -> 605.038448 | G13: =((G12-VLOOKUP(G12,TablaMes,1))*VLOOKUP(G12,TablaMes,3))+VLOOKUP(G12,TablaMes,2) -> 605.038448 | H13: =((H12-VLOOKUP(H12,TablaMes,1))*VLOOKUP(H12,TablaMes,3))+VLOOKUP(H12,TablaMes,2) -> 0
B14: Ocultos | C14: Subsidio semanal dato oculto relacionado | D14: =IF(D4=0,0,SubSem) -> 109.38 | E14: =IF(E4=0,0,SubSem) -> 109.38 | F14: =IF(F4=0,0,SubSem) -> 109.38 | G14: =IF(G4=0,0,SubSem) -> 109.38 | H14: =IF(H4=0,0,SubSem) -> 0
B15: Ocultos | C15: Oculto Para llegar a los 390 | D15: =+D14 -> 109.38 | E15: =IF(E4=0,0,MIN(+D15+E14,$H$36)) -> 218.76 | F15: =IF(F4=0,0,MIN(+E15+F14,$H$36)) -> 328.14 | G15: =IF(G3=B1, MAX(H36,IF(G4=0,0,MIN(F15+G14,$H$36))), IF(G4=0,0,MIN(+F15+G14,$H$36))) -> 437.52 | H15: =IF(H3=B1, MAX(H36,IF(H4=0,0,MIN(F15+H14,$H$36))), IF(H4=0,0,MIN(+F15+G14,$H$36))) -> 475
B16: Ocultos | C16: Limite para Subsidio Semanal | D16: =LimiteSemSub -> 2342.006579 | E16: =LimiteSemSub -> 2342.006579 | F16: =LimiteSemSub -> 2342.006579 | G16: =LimiteSemSub -> 2342.006579 | H16: =LimiteSemSub -> 2342.006579
C17: ISR de Tarifa | D17: =D13/30.4*D11 -> 139.3180637 | E17: =E13/30.4*E11 -> 139.3180637 | F17: =F13/30.4*F11 -> 139.3180637 | G17: =G13/30.4*G11 -> 139.3180637 | H17: =H13/30.4*H11 -> 0 | J17: =((J9-VLOOKUP(J9,TablaMes,1))*VLOOKUP(J9,TablaMes,3))+VLOOKUP(J9,TablaMes,2) -> 532.238192 | K17: Informativo
C18: Subsidio Correspondiente del Periodo | D18: =IF(OR(D10>LimiteMensSub,D9>D16),0,MAX(+D15,0)) -> 109.38 | E18: =IF(OR(E10>LimiteMensSub,E9>E16),0,MAX(+E15-D15,0)) -> 109.38 | F18: =IF(OR(F10>LimiteMensSub,F9>F16),0,MAX(+F15-E15,0)) -> 109.38 | G18: =IF(OR(G10>LimiteMensSub,G9>G16),0,MAX(+G15-F15,0)) -> 109.38 | H18: =IF(OR(H10>LimiteMensSub,H9>H16),0,MAX(+H15-G15,0)) -> 37.48 | I18: =SUM(D18:H18) -> 475 | J18: =IF(OR(I9>10171,I18>H39),0,I18) -> 475
C19: Subsidio definitivo | D19: =MIN(D18,D17) -> 109.38 | E19: =MIN(E18,E17) -> 109.38 | F19: =MIN(F18,F17) -> 109.38 | G19: =IF(G3=B1,IF(OR(G10>LimiteMensSub,G9>G16),0,MIN(MAX(G15-F20,0),G17)),MIN(G18,G17)) -> 109.38 | H19: =IF(OR(H10>LimiteMensSub,H9>H16),0,MIN(MAX(H15-G20,0),H17)) -> 0 | I19: =SUM(D19:H19) -> 437.52 | J19: =IF(OR(I9>10171,I19>H39),0,I19) -> 437.52
C20: Subsidio acumulado | D20: =D19 -> 109.38 | E20: =E19+D20 -> 218.76 | F20: =F19+E20 -> 328.14 | G20: =G19+F20 -> 437.52 | H20: =H19+G20 -> 437.52
A21: 002 | B21: Deducción | C21: ISR Retención Semanal | D21: =IF(SMGC*7>=D9,(MAX(D17-D18,0)*$H$35),MAX(D17-D18,0)) -> 0 | E21: =IF(SMGC*7>=E9,(MAX(E17-E18,0)*$H$35),MAX(E17-E18,0)) -> 0 | F21: =IF(SMGC*7>=F9,(MAX(F17-F18,0)*$H$35),MAX(F17-F18,0)) -> 0 | G21: =IF(SMGC*7>=G9,(MAX(G17-G18,0)*$H$35),MAX(G17-G18,0)) -> 0 | H21: =IF(SMGC*7>=H9,(MAX(H17-H18,0)*$H$35),MAX(H17-H18,0)) -> 0 | I21: =SUM(D21:H21)+H24 -> 0 | J21: =MAX(0,J17-J19) -> 94.718192 | K21: =J21-I21 -> 94.718192
A22: 002 | B22: Deducción | C22: ISR Retenido de Menos | H22: =IF(H9=0,0,IF(I9>SMGC*I4,MAX(K21,0)*H37,(MAX(K21,0)*H37)*H35)) -> 0
A23: 107 | B23: Deducción | C23: Ajuste al Subsidio Causado | G23: =IF($H$9=0,J23,0) -> 0 | H23: =IF($H$9<>0,J23,0) -> 0 | I23: Resta | J23: =IF(I19>J19,I19,0) -> 0
A24: 002 | B24: Deducción | C24: ISR por ajuste mensual | G24: =IF($H$9=0,J24,0) -> 0 | H24: =IF($H$9<>0,J24,0) -> 0 | I24: Resta | J24: =+J23 -> 0
A25: 007 | B25: Otros Pagos | C25: ISR ajustado por subsidio | G25: =IF($H$9=0,J25,0) -> 0 | H25: =IF($H$9<>0,J25,0) -> 0 | I25: Suma | J25: =+J24 -> 0
A26: 001 | B26: Otros Pagos | C26: Reintegro de ISR retenido en exceso | G26: =IF($H$9=0,J26,0) -> 0 | H26: =IF($H$9<>0,J26,0) -> 0 | I26: Suma | J26: =MAX(0,K21*-1)*H34 -> 0
C27: Neto | D27: =+D9-D21-D24 -> 1951.6 | E27: =+E9-E21-E24 -> 1951.6 | F27: =+F9-F21-F24 -> 1951.6 | G27: =+G9-G21-G24 -> 1951.6 | H27: =+H9-H21-H24-H22 -> 0
H31: =IF(H9=0,0,IF(I9>SMGC*I4,MAX(K21,0)*H37,(MAX(K21,0)*H37)*H35)) -> 0
A33: Bandera | G33: Opcion | H33: Auxilar Opción
A34: 1) | B34: Activar "001 Otros Pagos, Reintegro de ISR Retenido en Exceso" | G34: =+Instrucciones!F15 -> No | H34: =IF(G34="Si",1,0) -> 0 | J34: =IF(G34="si",1,0) -> 0
A35: 2) | B35: Retener ISR aunque el trabajador gane el minimo | G35: No | H35: =IF(G35="Si",1,0) -> 0
A36: 3) | B36: Monto de Subisdio a pagar Máximo (475 o por Días del Periodo) | G36: =+Instrucciones!F17 -> 475 | H36: =IF(G36=475,475,MIN(SUM(D4:H4)*15.62,475)) -> 475
A37: 4) | B37: Retener ISR de menos en el ajuste mensual (periodos de 5 semanas) | G37: =+Instrucciones!F18 -> Si | H37: =IF(G37="Si",1,0) -> 1
A39: 5) | B39: En periodos de mas de 4 semanas, topar a (475 o 35 días de Subsidio) | G39: =+Instrucciones!F20 -> 475 | H39: =IF(G39=475,475,546.7) -> 475

Sheet M-12
A1: Número de periodos en el mes | B1: 5 | C1: Nota: Si vas a realizar el cálculo con 4 semanas, asegúrate de poner en cero los días pagados del periodo 5!!!!
D2: P E R I O D O S | N2: Dias | O2: Varios | P2: Deduccion 002 | Q2: Deduccion 002 | R2: Deduccion 002 | S2: Sin Concepto | T2: Deducción 107 | U2: Otro Pagos 001
A3: Cve SAT | B3: Tipo Concepto | C3: Concepto | D3: 1 | E3: 2 | F3: 3 | G3: 4 | H3: 5 | I3: Acumulados Periodo | J3: Recalculo | K3: Diferencia | M3: Mes | N3: Acumulado Dias | O3: Ingreso Acumulable del Mes | P3: ISR Retenido del Mes | Q3: ISR Retenido de Menos | R3: ISR Por Ajuste Mensual | S3: Subsidio Correspondiente | T3: Ajuste al Subsidio Causado | U3: Reintegro de ISR Retenido en Exceso | V3: ISR Neto | W3: Subsidio Correspondiente Neto
C4: Dias Periodo/Calendario | D4: 7 | E4: 7 | F4: =+E4 -> 7 | G4: 7 | I4: =SUM(D4:H4) -> 28 | M4: 12 | N4: =+I4 -> 28 | O4: =+I9 -> 7806.4 | P4: =SUM(D21:H21) -> 0 | Q4: =+H22 -> 0 | R4: =+J24 -> 0 | S4: =+I18 -> 475 | T4: =+J25 -> 0 | U4: =+J26 -> 0 | V4: =+P4+Q4+R4 -> 0 | W4: =+S4-T4 -> 475
C5: Dias Pagados | D5: 7 | E5: 7 | F5: 7 | G5: 7
C6: Salario Diario | D6: =+'M-01'!D6 -> 278.8 | E6: =+D6 -> 278.8 | F6: =+E6 -> 278.8 | G6: 278.8 | H6: 278.8
C7: Ingreso Ordinario | D7: =D5*D6 -> 1951.6 | E7: =E5*E6 -> 1951.6 | F7: =F5*F6 -> 1951.6 | G7: =G5*G6 -> 1951.6 | H7: =H5*H6 -> 0 | I7: =SUM(D7:H7) -> 7806.4
A8: Varias | B8: Percepción | C8: Ingreso ExtraOrdinario
A9: Varias | B9: Percepción | C9: Ingreso Gravado Acumulable | D9: =+D8+D7 -> 1951.6 | E9: =+E8+E7 -> 1951.6 | F9: =+F8+F7 -> 1951.6 | G9: =+G8+G7 -> 1951.6 | H9: =+H8+H7 -> 0 | I9: =SUM(D9:H9) -> 7806.4 | J9: =I9 -> 7806.4 | K9: =+I9 -> 7806.4
B10: Ocultos | C10: Oculto Acumulado para 8,091 | D10: =+D9 -> 1951.6 | E10: =+D10+E9 -> 3903.2 | F10: =+E10+F9 -> 5854.8 | G10: =+F10+G9 -> 7806.4 | H10: =+G10+H9 -> 7806.4
B11: Ocultos | C11: Dias a Tomar Para Elevar/DesElevar | D11: =+D4 -> 7 | E11: =+E4 -> 7 | F11: =+F4 -> 7 | G11: =+G4 -> 7 | H11: =+H4 -> 0
B12: Ocultos | C12: Base gravada elevada al mes | D12: =IF(D9=0,0,D9/D11*30.4) -> 8475.52 | E12: =IF(E9=0,0,E9/E11*30.4) -> 8475.52 | F12: =IF(F9=0,0,F9/F11*30.4) -> 8475.52 | G12: =IF(G9=0,0,G9/G11*30.4) -> 8475.52 | H12: =IF(H4=0,0,IF(H9=0,0,H9/H11*30.4)) -> 0
B13: Ocultos | C13: ISR directo elevado al mes | D13: =((D12-VLOOKUP(D12,TablaMes,1))*VLOOKUP(D12,TablaMes,3))+VLOOKUP(D12,TablaMes,2) -> 605.038448 | E13: =((E12-VLOOKUP(E12,TablaMes,1))*VLOOKUP(E12,TablaMes,3))+VLOOKUP(E12,TablaMes,2) -> 605.038448 | F13: =((F12-VLOOKUP(F12,TablaMes,1))*VLOOKUP(F12,TablaMes,3))+VLOOKUP(F12,TablaMes,2) -> 605.038448 | G13: =((G12-VLOOKUP(G12,TablaMes,1))*VLOOKUP(G12,TablaMes,3))+VLOOKUP(G12,TablaMes,2) -> 605.038448 | H13: =((H12-VLOOKUP(H12,TablaMes,1))*VLOOKUP(H12,TablaMes,3))+VLOOKUP(H12,TablaMes,2) -> 0
B14: Ocultos | C14: Subsidio semanal dato oculto relacionado | D14: =IF(D4=0,0,SubSem) -> 109.38 | E14: =IF(E4=0,0,SubSem) -> 109.38 | F14: =IF(F4=0,0,SubSem) -> 109.38 | G14: =IF(G4=0,0,SubSem) -> 109.38 | H14: =IF(H4=0,0,SubSem) -> 0
B15: Ocultos | C15: Oculto Para llegar a los 390 | D15: =+D14 -> 109.38 | E15: =IF(E4=0,0,MIN(+D15+E14,$H$36)) -> 218.76 | F15: =IF(F4=0,0,MIN(+E15+F14,$H$36)) -> 328.14 | G15: =IF(G3=B1, MAX(H36,IF(G4=0,0,MIN(F15+G14,$H$36))), IF(G4=0,0,MIN(+F15+G14,$H$36))) -> 437.52 | H15: =IF(H3=B1, MAX(H36,IF(H4=0,0,MIN(F15+H14,$H$36))), IF(H4=0,0,MIN(+F15+G14,$H$36))) -> 475
B16: Ocultos | C16: Limite para Subsidio Semanal | D16: =LimiteSemSub -> 2342.006579 | E16: =LimiteSemSub -> 2342.006579 | F16: =LimiteSemSub -> 2342.006579 | G16: =LimiteSemSub -> 2342.006579 | H16: =LimiteSemSub -> 2342.006579
C17: ISR de Tarifa | D17: =D13/30.4*D11 -> 139.3180637 | E17: =E13/30.4*E11 -> 139.3180637 | F17: =F13/30.4*F11 -> 139.3180637 | G17: =G13/30.4*G11 -> 139.3180637 | H17: =H13/30.4*H11 -> 0 | J17: =((J9-VLOOKUP(J9,TablaMes,1))*VLOOKUP(J9,TablaMes,3))+VLOOKUP(J9,TablaMes,2) -> 532.238192 | K17: Informativo
C18: Subsidio Correspondiente del Periodo | D18: =IF(OR(D10>LimiteMensSub,D9>D16),0,MAX(+D15,0)) -> 109.38 | E18: =IF(OR(E10>LimiteMensSub,E9>E16),0,MAX(+E15-D15,0)) -> 109.38 | F18: =IF(OR(F10>LimiteMensSub,F9>F16),0,MAX(+F15-E15,0)) -> 109.38 | G18: =IF(OR(G10>LimiteMensSub,G9>G16),0,MAX(+G15-F15,0)) -> 109.38 | H18: =IF(OR(H10>LimiteMensSub,H9>H16),0,MAX(+H15-G15,0)) -> 37.48 | I18: =SUM(D18:H18) -> 475 | J18: =IF(OR(I9>10171,I18>H39),0,I18) -> 475
C19: Subsidio definitivo | D19: =MIN(D18,D17) -> 109.38 | E19: =MIN(E18,E17) -> 109.38 | F19: =MIN(F18,F17) -> 109.38 | G19: =IF(G3=B1,IF(OR(G10>LimiteMensSub,G9>G16),0,MIN(MAX(G15-F20,0),G17)),MIN(G18,G17)) -> 109.38 | H19: =IF(OR(H10>LimiteMensSub,H9>H16),0,MIN(MAX(H15-G20,0),H17)) -> 0 | I19: =SUM(D19:H19) -> 437.52 | J19: =IF(OR(I9>10171,I19>H39),0,I19) -> 437.52
C20: Subsidio acumulado | D20: =D19 -> 109.38 | E20: =E19+D20 -> 218.76 | F20: =F19+E20 -> 328.14 | G20: =G19+F20 -> 437.52 | H20: =H19+G20 -> 437.52
A21: 002 | B21: Deducción | C21: ISR Retención Semanal | D21: =IF(SMGC*7>=D9,(MAX(D17-D18,0)*$H$35),MAX(D17-D18,0)) -> 0 | E21: =IF(SMGC*7>=E9,(MAX(E17-E18,0)*$H$35),MAX(E17-E18,0)) -> 0 | F21: =IF(SMGC*7>=F9,(MAX(F17-F18,0)*$H$35),MAX(F17-F18,0)) -> 0 | G21: =IF(SMGC*7>=G9,(MAX(G17-G18,0)*$H$35),MAX(G17-G18,0)) -> 0 | H21: =IF(SMGC*7>=H9,(MAX(H17-H18,0)*$H$35),MAX(H17-H18,0)) -> 0 | I21: =SUM(D21:H21)+H24 -> 0 | J21: =MAX(0,J17-J19) -> 94.718192 | K21: =J21-I21 -> 94.718192
A22: 002 | B22: Deducción | C22: ISR Retenido de Menos | H22: =IF(H9=0,0,IF(I9>SMGC*I4,MAX(K21,0)*H37,(MAX(K21,0)*H37)*H35)) -> 0
A23: 107 | B23: Deducción | C23: Ajuste al Subsidio Causado | G23: =IF($H$9=0,J23,0) -> 0 | H23: =IF($H$9<>0,J23,0) -> 0 | I23: Resta | J23: =IF(I19>J19,I19,0) -> 0
A24: 002 | B24: Deducción | C24: ISR por ajuste mensual | G24: =IF($H$9=0,J24,0) -> 0 | H24: =IF($H$9<>0,J24,0) -> 0 | I24: Resta | J24: =+J23 -> 0
A25: 007 | B25: Otros Pagos | C25: ISR ajustado por subsidio | G25: =IF($H$9=0,J25,0) -> 0 | H25: =IF($H$9<>0,J25,0) -> 0 | I25: Suma | J25: =+J24 -> 0
A26: 001 | B26: Otros Pagos | C26: Reintegro de ISR retenido en exceso | G26: =IF($H$9=0,J26,0) -> 0 | H26: =IF($H$9<>0,J26,0) -> 0 | I26: Suma | J26: =MAX(0,K21*-1)*H34 -> 0
C27: Neto | D27: =+D9-D21-D24 -> 1951.6 | E27: =+E9-E21-E24 -> 1951.6 | F27: =+F9-F21-F24 -> 1951.6 | G27: =+G9-G21-G24 -> 1951.6 | H27: =+H9-H21-H24-H22 -> 0
H31: =IF(H9=0,0,IF(I9>SMGC*I4,MAX(K21,0)*H37,(MAX(K21,0)*H37)*H35)) -> 0
A33: Bandera | G33: Opcion | H33: Auxilar Opción
A34: 1) | B34: Activar "001 Otros Pagos, Reintegro de ISR Retenido en Exceso" | G34: =+Instrucciones!F15 -> No | H34: =IF(G34="Si",1,0) -> 0 | J34: =IF(G34="si",1,0) -> 0
A35: 2) | B35: Retener ISR aunque el trabajador gane el minimo | G35: No | H35: =IF(G35="Si",1,0) -> 0
A36: 3) | B36: Monto de Subisdio a pagar Máximo (475 o por Días del Periodo) | G36: =+Instrucciones!F17 -> 475 | H36: =IF(G36=475,475,MIN(SUM(D4:H4)*15.62,475)) -> 475
A37: 4) | B37: Retener ISR de menos en el ajuste mensual (periodos de 5 semanas) | G37: =+Instrucciones!F18 -> Si | H37: =IF(G37="Si",1,0) -> 1
A39: 5) | B39: En periodos de mas de 4 semanas, topar a (475 o 35 días de Subsidio) | G39: =+Instrucciones!F20 -> 475 | H39: =IF(G39=475,475,546.7) -> 475

Sheet TARIFAS
D3: 8601.51 | I3: =G10 -> 12935.83 | O3: Semanal | Q3: 2978.65 | V3: 5514.76
B4: ISROrigenMes | D4: =D3/I3 -> 0.664936846 | G4: TablaMes | I4: 1 | K4: Auxiliar Para Quintos Limites | O4: TablaPer | Q4: 0.2302631579 | T4: TablaQ | V4: 0.4934214461
B5: LIMITE INFERIOR | C5: CUOTA FIJA | D5: % EXCEDENTE | G5: LIMITE INFERIOR | H5: CUOTA FIJA | I5: % EXCEDENTE | L5: Quinto Limite Tabla | O5: LIMITE INFERIOR | P5: CUOTA FIJA | Q5: % EXCEDENTE | T5: LIMITE INFERIOR | U5: CUOTA FIJA | V5: % EXCEDENTE
A6: 1 | B6: =G6*$D$4 -> 0 | C6: =H6*$D$4 -> 0 | D6: 0.0192 | F6: 1 | G6: 0 | H6: 0 | I6: 0.0192 | K6: Mensual | L6: 12935.83 | N6: 1 | O6: 0 | P6: 0 | Q6: 0.0192 | S6: 1 | T6: 0.01 | U6: 0 | V6: 0.0192
A7: 2 | B7: =G7*$D$4 -> 496.0761339 | C7: =H7*$D$4 -> 9.521895634 | D7: 0.064 | F7: 2 | G7: 746.05 | H7: 14.32 | I7: 0.064 | K7: Quincenal | L7: 6382.81 | N7: 2 | O7: 171.79 | P7: 3.29 | Q7: 0.064 | S7: 2 | T7: 368.11 | U7: 7.05 | V7: 0.064
A8: 3 | B8: 4210.420005 | C8: 247.2434674 | D8: 0.1088 | F8: 3 | G8: 6332.06 | H8: 371.83 | I8: 0.1088 | K8: Decenal | L8: 4255.21 | N8: 3 | O8: 1458.04 | P8: 85.61 | Q8: 0.1088 | S8: 3 | T8: 3124.36 | U8: 183.45 | V8: 0.1088
A9: 4 | B9: 7399.430521 | C9: 594.2075137 | D9: 0.16 | F9: 4 | G9: 11128.02 | H9: 893.63 | I9: 0.16 | K9: Semanal | L9: 2978.65 | N9: 4 | O9: 2562.36 | P9: 205.8 | Q9: 0.16 | S9: 4 | T9: 5490.76 | U9: 441 | V9: 0.16
A10: 5 | B10: 8601.51 | C10: 786.5404963 | D10: 0.1792 | F10: 5 | G10: 12935.83 | H10: 1182.88 | I10: 0.1792 | K10: 30.4 | L10: 12935.83 | N10: 5 | O10: 2978.65 | P10: 272.37 | Q10: 0.1792 | S10: 5 | T10: 6382.81 | U10: 583.65 | V10: 0.1792
A11: 6 | B11: 10298.35569 | C11: 1090.616116 | D11: 0.2136 | F11: 6 | G11: 15487.72 | H11: 1640.18 | I11: 0.2136 | N11: 6 | O11: 3566.23 | P11: 377.65 | Q11: 0.2136 | S11: 6 | T11: 7641.91 | U11: 809.25 | V11: 0.2136
A12: 7 | B12: 20770.29979 | C12: 3327.42377 | D12: 0.2352 | F12: 7 | G12: 31236.5 | H12: 5004.12 | I12: 0.2352 | N12: 7 | O12: 7192.65 | P12: 1152.27 | Q12: 0.2352 | S12: 7 | T12: 15412.81 | U12: 2469.15 | V12: 0.2352
A13: 8 | B13: 32736.84239 | C13: 6141.948503 | D13: 0.3 | F13: 8 | G13: 49233.01 | H13: 9236.89 | I13: 0.3 | N13: 8 | O13: 11336.58 | P13: 2126.95 | Q13: 0.3 | S13: 8 | T13: 24292.66 | U13: 4557.75 | V13: 0.3
A14: 9 | B14: 62500.01405 | C14: 15070.90665 | D14: 0.32 | F14: 9 | G14: 93993.91 | H14: 22665.17 | I14: 0.32 | N14: 9 | O14: 21643.31 | P14: 5218.92 | Q14: 0.32 | S14: 9 | T14: 46378.51 | U14: 11183.4 | V14: 0.32
A15: 10 | B15: 83333.34986 | C15: 21737.57012 | D15: 0.34 | F15: 10 | G15: 125325.21 | H15: 32691.18 | I15: 0.34 | N15: 10 | O15: 28857.79 | P15: 7527.59 | Q15: 0.34 | S15: 10 | T15: 61838.11 | U15: 16130.55 | V15: 0.34
A16: 11 | B16: 250000.0429 | C16: 78404.24616 | D16: 0.35 | F16: 11 | G16: 375975.62 | H16: 117912.32 | I16: 0.35 | N16: 11 | O16: 86573.35 | P16: 27150.83 | Q16: 0.35 | S16: 11 | T16: 185514.31 | U16: 58180.35 | V16: 0.35
G20: Anual
B21: Anterior | G21: Limite Inferior | H21: Cuota Fija | I21: %
A22: UMADiaria | B22: 108.57 | F22: 1 | G22: 0 | H22: 0 | I22: 0.0192
A23: SubsidioPorc | B23: 0.1439 | F23: 2 | G23: 8952.5 | H23: 171.88 | I23: 0.064 | M23: 113.22
A24: SubDiario | B24: =B22*B23 -> 15.623223 | F24: 3 | G24: 75984.56 | H24: 4461.94 | I24: 0.1088
A25: SubMens | B25: 475 | F25: 4 | G25: 133536.08 | H25: 10723.55 | I25: 0.16
A26: LimiteMensSub | B26: 10171 | F26: 5 | G26: 155229.81 | H26: 14194.54 | I26: 0.1792
A27: LimiteDiarioSub | B27: =B26/30.4 -> 334.5723684 | F27: 6 | G27: 185852.58 | H27: 19682.13 | I27: 0.2136
A28: LimiteSemSub | B28: =B27*7 -> 2342.006579 | F28: 7 | G28: 374837.89 | H28: 60049.4 | I28: 0.2352
A29: SubSem | B29: 109.38 | F29: 8 | G29: 590796 | H29: 110842.74 | I29: 0.3
A30: SMGMes | B30: 8452 | F30: 9 | G30: 1127926.85 | H30: 271981.99 | I30: 0.32
A31: SMGC | B31: 278.8 | F31: 10 | G31: 1503902.47 | H31: 392294.17 | I31: 0.34
F32: 11 | G32: 4511707.38 | H32: 1414947.85 | I32: 0.35
A49: Bandera si/no
A50: Si
A51: No
A54: Bandera3
A55: 475
A56: Dias de periodo
A59: Bandera4 | B59: Bandera5 ??
A60: 475
A61: 35 dias de Subsidio
B69: Anterior | C69: Nuevo (Ene 2025) | D69: Feb a Dic 2025
A70: UMADiaria | B70: 108.57 | C70: 108.57 | D70: 113.14 | E70: UMADiaria | F70: 108.57 | I70: 108.57 | K70: 108.57 | L70: 108.57
A71: SubsidioPorc | B71: 0.1439 | C71: 0.1439 | D71: 0.138 | E71: SubsidioPorc | F71: 0.1182 | I71: 30.4 | K71: 30.4 | L71: 30.4
A72: SubDiario | B72: 15.62 | C72: 15.623223 | D72: =D70*D71 -> 15.61332 | E72: SubDiario | F72: 12.83 | G72: 89.81 | I72: =I70*I71 -> 3300.528 | K72: =K70*K71 -> 3300.528 | L72: =L70*L71 -> 3300.528
A73: SubMens | B73: 475 | C73: 475 | D73: 475 | E73: SubMens | F73: 390.032 | I73: 0.1182 | K73: 0.138 | L73: 0.1439
A74: LimiteMensSub | B74: 10171 | C74: 10171 | D74: 10171 | E74: LimiteMensSub | F74: 9081 | I74: =I72*I73 -> 390.1224096 | J74: Mensual | K74: =K72*K73 -> 455.472864 | L74: =L72*L73 -> 474.9459792
A75: LimiteDiarioSub | B75: 334.5723684 | C75: 334.5723684 | D75: 334.5723684 | E75: LimiteDiarioSub | F75: 298.7171053
A76: LimiteSemSub | B76: 2342.006579 | C76: 2342.006579 | D76: 2342.006579 | E76: LimiteSemSub | F76: 2091.019737
A77: SubSem | B77: =B73/30.4*7 -> 109.375 | C77: =C73/30.4*7 -> 109.375 | D77: =D73/30.4*7 -> 109.375 | E77: SubSem | F77: 89.81
A78: SMGMes | B78: 8452 | C78: 8475.52 | D78: 8475.52 | E78: SMGMes | F78: 7567.472
A79: SMGC | B79: 278.8 | C79: 278.8 | D79: 278.8 | E79: SMGC | F79: 248.93 | I79: 9081
B81: 419.88
A118: 475

Sheet Hoja1 (hidden)

Sheet Hoja3 (hidden)

Sheet Hoja4 (hidden)

Sheet Parametros (hidden)
B3: Salario Mínimo Zona Frontera | C3: 176.72 | D3: SMZF
B4: Salarios Mínimo | C4: 102.68 | D4: SM
B7: ISR Retenido de ejercicio anterior: Es el ISR que le debe retener el patrón al trabajador por el ajuste en el cálculo anual del trabajador correspondiente al ejercicio anterior de acuerdo a lo que establece el artículo 97, cuarto párrafo de la Ley del ISR.
A9: OP | B9: 007 | C9: ISR ajustado por subsidio | F9: Genera Flujo Postivo | G9: Nuevo
A10: Op | B10: 001 | C10: Reintegro de ISR pagado en exceso (siempre que no haya sido enterado al SAT). | F10: 2017-01-01
A11: OP | B11: 002 | C11: Subsidio para el empleo (efectivamente entregado al trabajador). | F11: 2017-01-01
